Workbook

Sheet Cover Page
D1: Add company logo
K2: Template version 25.1a (for incinerators) - 27/11/25
K3: [SEPA Version 1 151225]
K4: Note that there is another version of this template available for co-incinerators
B8: Add photo
K13: Notes:
K14: This template may require adjustments by individual operators to meet specific reporting requirements as defined in the site Permit(s)
B29: Annual Performance Report 2025
B31: Permit PPC/A/1003157/CP01/VN01
B33: MVV Environment Baldovie Ltd
B35: Lines 1, 2 and 3
B37: MVV Environment Baldovie Ltd
B39: Year: | C39: 2025
B41: Address: | C41: Forties Rd, DD4 0NS, Dundee
B43: Tel:
B45: Email:
B47: Prepared by: | F47: Position:
B49: Approved by: | F49: Position:
B51: Version: | C51: 1
B53: Issue Date: | C53: 2026-01-30

Sheet Facility Info
A1: =+'Cover Page'!$B$29 -> Annual Performance Report 2025 | E1: =+'Cover Page'!$B$33 -> MVV Environment Baldovie Ltd
A3: Plant Description and Design | K3: Notes:
A5: The MVV Environment Baldovie Ltd (MEB) Energy from Waste (EfW) facility is located on the northeasterly outskirts of Dundee, Scotland. The facility features two bubbling fluidised bed boilers, each with a thermal output of 17 MWth, firing 7.5 tph of waste per unit. The boilers operate on refuse-derived fuel, which is prepared on-site through the treatment of household and industrial waste received at the site from the local area, primarily from Dundee and Angus Councils. The steam generated by the boilers is supplied to a condensing steam turbine for the generation of up to 10.5 MWe of electrical power. The power is generated at 11 kV and after supplying power to run the plant, the balance is exported directly to the local Distribution Network Operator. The plant was constructed from 1998 to 2000 and has been in operation since March 2000 with various plant improvements and modifications made since operations commenced. Since the facility was acquired by MVV Umwelt in November 2018, significant investment in replacement and upgraded equipment has been made, resulting in improved reliability and efficiency, together with consistent and sustainable improvement in environmental performance. MVV have constructed a new Combined Heat and Power (CHP) facility using moving grate technology alongside and to the south of the existing fluidised bed plant. This plant has been fully commissioned and is now regulated under full permit conditions from the 1st of January 2022. A consolidated permit PPC/A/1003157/CP01 was issued on the 3rd of December 2023 in line with the changes to the waste incineration BAT conclusions The plant can supply up to 20 tonnes of steam for process use from the steam turbine extraction pass-out. This is in addition to the capability to export 9.9 MWe should the steam pass-out not be used. The operation of both plants is regulated under a common PPC Permit PPC/A/1003157 (As varied) with a permit variation granted on the 23rd of December 2020 to continue the operation of the fluidised bed plant alongside the new moving grate plant for a period of up to ten years. A consolidated permit was issued on the 3rd of December 2023 in line with the changes to the waste incineration BAT conclusions. The application of Best Available Techniques (BAT) will continuously be reviewed due to the transition to operating both plants and within the current year, MEB will be required to demonstrate that the recent BAT Ref for Incineration of Waste requirements are achievable for both plants. | K5: Include summary of plant design, design capacity, no. of combustion lines, electrical and heat capacity and any other general information that describes the facility, its location and purpose. Enter year site entered first year of operation following commissioning.
A20: Summary of Operational Processes and Procedures
A22: The Lines 1&2 Fluidised Bed Plant comprises the following units: Two bubbling fluidised bed incinerators, for the incineration of non-hazardous waste at temperatures above 850oC, each capable of burning up to 10 tonnes of waste an hour. Waste reception, inspection, preparation, and storage areas, comprising: a tipping hall, shredder;2 hammer mills; a refuse-derived fuel store; waste conveyor system; and metal recovery systems, comprising metal separation and eddy current separation. Boiler water treatment system comprising a cooling tower and associated pipework and heat exchangers. Gas cleaning and conditioning units on each line comprise cyclone separators; carbon and lime injection; an ammonia SNCR system; and a bag filtration plant. An odour abatement unit comprising activated carbon adsorption filters. Residue treatment and storage areas comprise a cyclone ash silo with a capacity of 60m3; a filter ash silo with a capacity of 60m3; and a bed ash handling system. A turbine and electrical generator supply power to the national grid. The line 3 construction project under commissioning was officially handed over on the 19th of January 2022. Full Permit conditions were implemented by SEPA on the 1st of January 2022. The Line 3 Moving Grate EFW CHP plant comprises the following units: The waste reception building comprises a tipping hall with a waste delivery pit of 1,161 m3 capacity, a single waste storage bunker of 4,413m3 capacity, a feed hopper and a quarantine area, all within an enclosed building fitted with a fast-acting roller shutter door and self-closing louvres; A single inclined reciprocating moving air-cooled grate incinerator for the incineration of non-hazardous waste at temperatures above 850°C, comprising a four-pass vertical water tube boiler, capable of incinerating up to 153,216 tonnes per annum, (typically 110,000 tonnes per annum based on a design point throughput of 13.7 t/hr at LCV10.5MJ/kg, and operational availability of 8000 hours); A heat recovery boiler in which heat from the combustion gases is recovered, to generate superheated steam passed to a steam turbine and associated electrical generator, capable of generating up to 8.7MWe for export to the National Grid. Steam is extracted from the turbine and fed into a steam network for export of up to 19.58 MWth to other users; A demineralised water production plant, capable of producing 23m3/hr and comprising ion exchange demineralisation. A cooling system, comprising a carbon steel and aluminium finned Air Cooled Condenser (ACC) and associated pipework; Flue gas cleaning and conditioning systems, comprising: a urea Selective Non-Catalytic Reduction (SNCR) system to control NOx emissions; dry scrubbing by calcium hydroxide (lime) injection for the abatement of acid gases and powdered activated carbon (PAC) injection for the abatement of dioxins/furans, volatile organic compounds (VOCs) and heavy metals; and a bag filtration plant for the removal of particulate matter. The flue gas is discharged to the atmosphere via an induced draft (ID) fan through a 90m stack; Ash residues treatment and storage, comprising incinerator bottom ash (IBA) collection hoppers, conveying system, a water-filled quenching system and storage in a bunker with a capacity of 356m3; Air pollution control residue (APCr) collection hoppers, conveyors and a storage silo, with a capacity of 160m3 and associated tanker discharge valve; Process Water collection systems, comprising a Clean Water collection pit, for the collection of Process Water from the boiler blow-down drain, regeneration and sampling of demineralised water, and return condensate | K22: Include summary of key processes and procedures such as (but not limited to); waste reception, control rooms, grate, bed and boiler, energy & heat generation, cooling systems, residue management, emission controls, health and safety systems, maintenance

Sheet Operational Data
A1: =+'Cover Page'!$B$29 -> Annual Performance Report 2025 | E1: =+'Cover Page'!$B$33 -> MVV Environment Baldovie Ltd
A3: Operational Data
A4: Plant Size: | B4: 303216 | D4: tonnes pa | J4: Notes:
A5: Nominal net thermal input: | B5: 74 | C5: MWth | J5: * Export capacity = nominal generation capacity at the generator terminals minus nominal parasitic load. ** CHP and district heating plants only - put N/A if no heat export. *** Combusted tonnage = tonnes delivered in period + (tonnes in bunker at start of period – tonnes in bunker at end of period), or equivalent calculation depending on plant type **** Availability Definition: The availability of a line is to be calculated by the number of hours the line reported Continuously Monitored emission levels to the Regulator through the calendar year divided by the total number of hours in that year. The overall plant availability is calculated as the mean of all lines in the plant. For clarity this includes periods of abnormal operation. Rationale: The primary function of an Energy from Waste facility is the disposal of waste. It follows therefore that the availability of a plant is determined by the period of time a facility spends undertaking this activity. *****NCV of waste: This should be completed for all plants which have a boiler. Calculate using total thermal power produced by boiler/boiler efficiency, or other suitable calculation.
A6: Nominal electrical export capacity*: | B6: 20 | C6: MWe
A7: Nominal heat export capacity**: | B7: 5 | C7: MWth
A8: No. of combustion lines: | B8: 3 | C8: No. of steam turbines: | E8: 2
A10: Waste types received | B10: Unit | C10: Q1 | D10: Q2 | E10: Q3 | F10: Q4 | G10: Year Total | H10: %
A11: Household / Local Authority | B11: tonnes | C11: 30563.98 | D11: 29963.96 | E11: 29034.6 | F11: 30690.4 | G11: =SUM(C11:F11) -> 120252.94 | H11: =IF(G11>0,G11/$G$21,"-") -> 0.7225028449
A12: Commercial & Industrial | C12: 10733.44 | D12: 7085 | E12: 8454.34 | F12: 9903.5 | G12: =SUM(C12:F12) -> 36176.28 | H12: 0.217354064
A13: Hazardous | G13: 0 | H13: -
A14: Clinical | G14: 0 | H14: -
A15: Waste wood (biomass) | G15: 0 | H15: -
A16: Refuse Derived Fuel (incl. SRF) - H'hold/LA | G16: =SUM(C16:F16) -> 0 | H16: -
A17: Refuse Derived Fuel (incl. SRF) - C&I | C17: 2384.84 | D17: 450.58 | E17: 50.88 | F17: 1067.84 | G17: 3954.14 | H17: 0.02375723537
A18: Paper Pulp | C18: 1122.78 | D18: 1310.46 | E18: 1366.22 | F18: 1517.06 | G18: 5316.52 | H18: 0.03194267703
A19: Animal Tissue / Food | C19: 46.22 | D19: 1.68 | E19: 16.74 | F19: 7.98 | G19: 72.62 | H19: 0.0004363149591
A20: Separately collected fraction | C20: 159.82 | D20: 212.82 | E20: 187.84 | F20: 106.42 | G20: 666.9 | H20: 0.004006863759
A21: Total waste received | C21: =SUM(C11:C20) -> 45011.08 | D21: =SUM(D11:D20) -> 39024.5 | E21: =SUM(E11:E20) -> 39110.62 | F21: =SUM(F11:F20) -> 43293.2 | G21: 166439.4
A22: Rejected Waste | C22: 0 | D22: 0.06 | E22: 3.74 | F22: 0 | G22: =SUM(C22:F22) -> 3.8 | H22: =IF(G22>0,G22/$G$21,"-") -> 2.283113253e-05
A23: Unprocessed waste transferred out | C23: 0 | G23: =SUM(C23:F23) -> 0 | H23: =IF(G23>0,G23/$G$21,"-") -> -
A24: Total waste combusted *** | C24: 45040.86 | D24: 38185 | E24: 39895.72 | F24: 42893.98 | G24: =SUM(C24:F24) -> 166015.56
A26: Energy Usage / Export | B26: Unit | C26: Q1 | D26: Q2 | E26: Q3 | F26: Q4 | G26: Year Total | H26: KWh/te | J26: Password for protected cells A password has been set to prevent accidental editing of cells with formulae. If you still need to make an edit for some reason then the password = 1234
A27: Power generated at generator terminals | B27: MWh | C27: 30957 | D27: 26993 | E27: 27677 | F27: 30285 | G27: =SUM(C27:F27) -> 115912 | H27: =IF(G27>0,G27*1000/$G$24,"-") -> 698.1996145
A28: Power exported to grid and other external user(s) | C28: 25457 | D28: 19911 | E28: 23326 | F28: 25628 | G28: =SUM(C28:F28) -> 94322 | H28: =IF(G28>0,G28*1000/$G$24,"-") -> 568.1515636
A29: Power imported | C29: 334 | D29: 437.4 | E29: 641.7 | F29: 378.4 | G29: 1791.5 | H29: =IF(G29>0,G29*1000/$G$24,"-") -> 10.79115717
A30: Indicative parasitic load | B30: % | C30: =IF(C27>0,(C27-C28)/C27,"-") -> 0.1776657945 | D30: =IF(D27>0,(D27-D28)/D27,"-") -> 0.2623643167 | E30: 0.1572063446 | F30: 0.1537724946 | G30: =IF(G27>0,1-G28/(G27+G29),"-") -> 0.1986474489
A31: Thermal Energy Exported ** | B31: MWh | C31: 415.473 | D31: 125.678 | E31: 62.179 | F31: 223.95 | G31: =SUM(C31:F31) -> 827.28 | H31: =IF(G31>0,G31*1000/$G$24,"-") -> 4.983147363
A32: R1 value (if applicable) | B32: R1 | C32: - | D32: - | E32: - | F32: -
A34: Waste Disposal & Recovery | B34: Unit | C34: Q1 | D34: Q2 | E34: Q3 | F34: Q4 | G34: Year Total | H34: % inputs
A35: APC Residues - produced | B35: tonnes | C35: 1464.36 | D35: 1269.52 | E35: 1204.5 | F35: 1327.16 | G35: =SUM(C35:F35) -> 5265.54 | H35: =IF(G35>0,G35/$G$24,"-") -> 0.03171714748
A36: IBA - produced | C36: 9172.14 | D36: 8529.91 | E36: 8529.5 | F36: 8822.34 | G36: 35053.89 | H36: =IF(G36>0,G36/$G$24,"-") -> 0.2111482201
A37: Metals recycling | C37: 258.22 | D37: 333.5 | E37: 163.9 | F37: 336.22 | G37: =SUM(C37:F37) -> 1091.84 | H37: 0.006576732928
A38: Cyclone ash | C38: 784.4 | D38: 835.14 | E38: 566.32 | F38: 559.22 | G38: =SUM(C38:F38) -> 2745.08 | H38: 0.01653507659
A39: Other | C39: 0 | D39: 0 | E39: 0 | F39: 0 | G39: 0 | H39: -
A40: Other | C40: 0 | D40: 0 | E40: 0 | F40: 0 | G40: 0 | H40: -
A42: Raw Material Usage | B42: Unit | C42: Q1 | D42: Q2 | E42: Q3 | F42: Q4 | G42: Year Total | H42: Qty./te
A43: Mains Water | B43: ltrs | C43: 32583 | D43: 30490 | E43: 28446 | F43: 33033 | G43: =SUM(C43:F43) -> 124552 | H43: =IF(G43>0,G43/$G$24,"-") -> 0.750242929
A44: Other Water | B44: m3 | C44: 26781.5 | D44: 32684.5 | E44: 24900 | F44: 15999 | G44: 100365 | H44: =IF(G44>0,G44/$G$24,"-") -> 0.6045517661
A45: Ammonia | B45: kgs | C45: 62400 | D45: 74100 | E45: 42500 | F45: 67400 | G45: 246400 | H45: 1.484198228
A46: Urea | B46: kgs | C46: 14000 | D46: 9000 | E46: 13600 | F46: 24900 | G46: =SUM(C46:F46) -> 61500 | H46: 0.3704472039
A47: Activated Carbon | B47: kgs | C47: 29200 | D47: 41000 | E47: 61000 | F47: 52210 | G47: 183410 | H47: 1.104775962
A48: Lime / hydrated lime | B48: kgs | C48: 612000 | D48: 569000 | E48: 496000 | F48: 536000 | G48: 2213000 | H48: 13.33007581
A49: Fuel oil | B49: ltrs | C49: 277813 | D49: 437424 | E49: 483748 | F49: 296297 | G49: 1495282 | H49: 9.006878632
A50: Gas | B50: m3 | G50: 0 | H50: -
A51: Other | G51: 0 | H51: -
A53: Summary | B53: Line/Unit | C53: Q1 | D53: Q2 | E53: Q3 | F53: Q4 | G53: Year Total | I53: Hrs in year
A54: Availability of waste combustion by line, hrs **** | B54: 1 | C54: 1428 | D54: 1496 | E54: 1127 | F54: 1420 | G54: =SUM(C54:F54) -> 5471 | H54: =+G54/$I$54 -> 0.624543379 | I54: 8760 | J54: Change this figure to 8784 in a leap year
B55: 2 | C55: 999 | D55: 1503 | E55: 1143 | F55: 914 | G55: 4559 | H55: =+G55/$I$54 -> 0.52043379
B56: 3 | C56: 2141 | D56: 1462 | E56: 2079 | F56: 2159 | G56: 7841 | H56: 0.8950913242
B57: 4 | G57: 0 | H57: 0
B58: 5 | G58: =SUM(C58:F58) -> 0 | H58: 0
A59: Hours of turbine operations, hrs | B59: 1 | C59: 1236 | D59: 2044 | E59: 1623 | F59: 1595 | G59: 6498 | H59: 0.7417808219
A60: Hours of turbine operations, hrs | B60: 2 | C60: 2160 | D60: 1420 | E60: 2049 | F60: 2203 | G60: 7832 | H60: 0.8940639269
A61: Hours of heat / steam export** | B61: hours | C61: 2135 | D61: 1450 | E61: 2065 | F61: 2150 | G61: 7800 | H61: =IF(B61>0,G60/I54,"n/a") -> 0.8940639269
A62: Net calorific value of waste***** | B62: MJ/kg | C62: 10.22968897 | D62: 10.50408977 | E62: 10.69736222 | F62: 10.22311662 | G62: =AVERAGE(C62:F62) -> 10.41356439
A63: Abnormal operation events | B63: qty. | G63: 0 | H63: =IF(G63>0,"yes","no") -> no
A64: Abnormal operation duration | B64: hours | G64: 0 | H64: =+(G64)/I54 -> 0
A65: Permit Breaches | B65: qty. | D65: 1 | E65: 1 | G65: 2 | H65: =IF(G65>0,"yes","no") -> yes

Sheet SEPA Addendum
A1: =+'[1]Cover Page'!$B$29 -> Annual Performance Report 2024 | E1: =+'[2]Cover Page'!$B$33 -> Name of Facility as per Permit
A3: Additional Operational Data for SEPA
A5: a) Report required under Condition 5.2.5 - Non-utilisation of Heat Recovery System
A6: Start of period | C6: End of period | E6: Duration | F6: Brief details of cause of period of non-utilisation and how
A7: Date | B7: Time | C7: Date | D7: Time | E7: hours:minutes (XX:XX) | F7: this was resolved
D18: TOTAL
A20: b) Additional Energy Data for calendar year
A22: The plant met energy recovery efficiency targets as shown in the table below: | F22: NOTE - For plants not required to complete an Annual Heat and Power Plan
A23: Energy Recovery Efficiency Target | C23: Target | D23: 2024 Actual | E23: 2023 Actual | F23: Operator comments | G23: * - TTWG means SEPA Thermal Treatment of Waste Guidelines 2014
A24: TTWG* Start Up Target | C24: 0.2 | D24: % | E24: %
C25: (gross CV basis)
A27: Operator’s comments :
A28: No periods of non-utilisation of heat recovery system within 2025

Sheet Operational Summary
A1: =+'Cover Page'!$B$29 -> Annual Performance Report 2025 | E1: =+'Cover Page'!$B$33 -> MVV Environment Baldovie Ltd
A3: Summary of Plant Operations and Maintenance during the reporting year | K3: Notes:
A5: All 3 lines saw a reduction in operational availability in 2025 compared to 2024. Line 1 reduced by 17%, Line 2 reduced by 25% and Line 3 reduced by 2.7%. The overall power generation reduced by 14.6%, and export reduced by 15% in comparison to 2024. Import power increased by 55.3%, and a 1% increase in indicative parisitic load. Thermal energy exports reduced by 8.1%, although export hours increased by 2.3%. The total mass of waste treated decreased by 13.1%. A 5% decrease was observed in local authority waste, and commercial and industrial waste reduced by 30.7%. Unplanned shutdown: Line 1 & 2: The majority of the unplanned downtime was a result of equipment defects, bed agglomerations and tube leaks Line 3: The majority of unplanned downtime was due to grate defects. Other incidents included boiler overpressure events and combustion control issues. Planned Downtime: The Lines 1&2 spring outage commenced on the 19th of March and ended on the 25th. The Lines 1&2 autumn outage commenced on the 1st of October and ended on the 14th. The Line 3 outage commenced on the 11th of June until the 1st of July. | K5: Include summary of key operational and/or maintenance activity undertaken in the year, such as any major component upgrades and/or replacements
A29: =+'Cover Page'!C39 -> 2025 | B29: Plant shut-downs
A30: Start date | B30: End date | C30: Reason for shut-down | K30: Provide a very brief reason for plant shut-down e.g. "Shut-down prior to major outage"; "Emergency shut-down due to boiler tube leak". All emergency shut-downs must be listed (irrespective of whether or not they were required to be reported to SEPA). There is no need to include periods of hot-standby here (e.g. to clear feed chute hopper blockages). For clinical waste incinerators which require regular shut-downs for boiler cleaning, there is no need to record these here (only those prior to major outages, and emergency shut-downs).
A31: 2025-01-01 | B31: 2025-01-04T15:26:00 | C31: Boiler 2: Loss of bed fluidisation - leak found on superheater on cool down.
A32: 2025-01-01 | B32: 2025-01-02T01:24:00 | C32: Boiler 1: Loss of bed fluidisation
A33: 2025-01-05T19:56:00 | B33: 2025-01-07T21:51:00 | C33: Boiler 1: Loss of bed fluidisation
A34: 2025-01-11T00:55:00 | B34: 2025-01-14T01:03:00 | C34: Boiler 2: Windbox Tube leak x2, passed third pressure test
A35: 2025-01-12T14:03:00 | B35: 2025-01-13T20:25:00 | C35: Boiler 1: Loss of bed fluidisation
A36: 2025-01-18T06:19:00 | B36: 2025-01-20 | C36: Boiler 2: Loss of bed fluidisation
A37: 2025-01-20T22:52:00 | B37: 2025-01-22T08:00:00 | C37: Boiler 1: Blocked ash drain - bed condition very poor - off for dig out
A38: 2025-01-23T19:48:00 | B38: 2025-01-24T21:00:00 | C38: Boiler 1: Blocked ash drain
A39: 2025-02-01T05:00:00 | B39: 2025-02-03T01:10:00 | C39: Boiler 2: Loss of bed fluidisation
A40: 2025-02-01T12:40:00 | B40: 2025-02-03T08:15:00 | C40: Boiler 1: Loss of bed fluidisation
A41: 2025-02-05T13:46:00 | B41: 2025-02-07T01:15:00 | C41: Boiler 1: Loss of fluidisation
A42: 2025-02-05T10:49:00 | B42: 2025-02-07T05:15:00 | C42: Boiler 2: Loss of fluidisation
A43: 2025-02-12T04:16:00 | B43: 2025-02-13T19:59:00 | C43: Boiler 2: Rapid loss of bed fluidisation
A44: 2025-02-12T11:58:00 | B44: 2025-02-14T17:14:00 | C44: Boiler 1: Blocked ash drain - bed not fluidising on inspection
A45: 2025-02-16T02:39:00 | B45: 2025-02-28T23:59:59 | C45: Boiler 2: Instantaneous loss of bed Dp - backpass repair/unblocking - turbine lube oil issues/vibration PSU
A46: 2025-02-17T21:00:00 | B46: 2025-02-20T03:00:00 | C46: Boiler 1: Loss of fluidisation under the fuel chute - turbine lube oil issues
A47: 2025-03-01 | B47: 2025-03-11T22:00:00 | C47: Boiler 2: Awaiting PSU for turbine vibration
A48: 2025-03-11T22:04:00 | B48: 2025-03-19T20:56:00 | C48: Boiler 1: Planned outage
A49: 2025-03-11T22:00:00 | B49: 2025-03-19T13:27:00 | C49: Boiler 2: Planned outage
A50: 2025-03-21T04:47:00 | B50: 2025-03-22T13:20:00 | C50: Boiler 2: Scalping roller NDE bearing replacement
A51: 2025-03-25T08:26:00 | B51: 2025-03-27T04:01:00 | C51: Boiler 2: Banked for slide belt replacement - bed agglomorated on return to service
A52: 2025-03-29T17:00:00 | B52: 2025-03-31T19:38:00 | C52: Boiler 1: Erratic emissions - large slag fall killed bed fluidisation
A53: 2025-04-01T00:00:01 | B53: 2025-04-02T18:28:00 | C53: Boiler 3: Grate blockage - sliding bearings misaligned
A54: 2025-04-05T19:00:00 | B54: 2025-04-08T11:25:00 | C54: Boiler 3: Grate blockage - build up under zone 1 bars - stopping full movement of zone 1.
A55: 2025-04-05T22:01:00 | B55: 2025-04-07T03:48:00 | C55: Boiler 2: Loss of bed fluidisation
A56: 2025-04-10T13:00:00 | B56: 2025-04-11T22:11:00 | C56: Boiler 2: Loss of bed fluidisation - wall slag fall
A57: 2025-04-11T20:27:00 | B57: 2025-04-13T20:56:00 | C57: Boiler: Blocked ash drain - off waste
A58: 2025-04-12T00:50:00 | B58: 2025-04-16T09:30:00 | C58: Boiler 3: Grate blockage - zone 2 LHS loss of ful movement
A59: 2025-04-16T09:01:00 | B59: 2025-04-18T00:36:00 | C59: Boiler 2: Bed agglomoration
A60: 2025-04-23T05:57:00 | B60: 2025-04-27T04:08:00 | C60: Boiler 2: Loss of fluidisation
A61: 2025-04-23T16:48:00 | B61: 2025-04-25T11:50:00 | C61: Boiler 1: Loss of bed temps - bed slumped
A62: 2025-04-27T21:22:00 | B62: 2025-04-29T07:45:00 | C62: Boiler 1: Loss of fluidisation
A63: 2025-04-27T04:16:00 | B63: 2025-04-30T00:34:00 | C63: Boiler 2: High dust
A64: 2025-04-28T19:05:00 | B64: 2025-04-29T15:19:00 | C64: Boiler trip furnace overpressure event
A65: 2025-05-06T15:53:00 | B65: 2025-05-10T21:35:00 | C65: Boiler 2: Blocked ash drain
A66: 2025-05-14T12:45:00 | B66: 2025-05-16T07:05:00 | C66: Boiler 1: Blocked ash drain
A67: 2025-05-17T20:50:00 | B67: 2025-05-19T14:02:00 | C67: Boiler 2: fuel chute blockage, boiler cooled.
A68: 2025-05-18T23:18:00 | B68: 2025-05-21T00:12:00 | C68: Boiler 1: Apron lammel jammed - boiler hot banked - slag fall killed bed
A69: 2025-05-22T00:36:00 | B69: 2025-05-23T00:48:00 | C69: Boiler 1: Slag fall killed bed
A70: 2025-05-23T17:17:00 | B70: 2025-05-26T12:07:00 | C70: Boiler 2: Bed agglomoration
A71: 2025-05-25T13:36:00 | B71: 2025-05-29T20:12:00 | C71: Boiler 1: Economiser tube leak - restart delayed by lack of sand up to 28/5 - sand dosing defect 29/5
A72: 2025-06-05T20:44:00 | B72: 2025-06-08T04:45:00 | C72: Boiler 1: Loss of bed fluidisation
A73: 2025-06-07T16:20:00 | B73: 2025-06-09T14:05:00 | C73: Boiler 2: Loss of fluidisation
A74: 2025-06-10T13:00:00 | B74: 2025-06-30T22:27:00 | C74: Planned outage
A75: 2025-06-10T21:14:00 | B75: 2025-06-12T21:09:00 | C75: Boiler 2: Loss of BA screw 1 DE bearing
A76: 2025-06-11T06:02:00 | B76: 2025-06-13T00:13:00 | C76: Boiler 1: Blocked ash drain leading to loss of fluidisation
A77: 2025-06-17T06:08:00 | B77: 2025-06-19T00:01:00 | C77: Boiler 2: Loss of bed fluidisation under the fuel chute
A78: 2025-06-20T00:14:00 | B78: 2025-06-21T21:32:00 | C78: Boiler 1: Blocked ash drain leading to loss of fluidisation
A79: 2025-06-24T06:36:00 | B79: 2025-06-27T12:33:00 | C79: Boiler 2: Loss of bed fluidisation
A80: 2025-06-28T16:29:00 | B80: 2025-06-30T04:46:00 | C80: Boiler 1: Blocked ash drain and build up at bottom of fuel chute
A81: 2025-07-01 | B81: 2025-07-02T09:22:00 | C81: Boiler 2: Loss of fluidisation
A82: 2025-07-01T00:30:00 | B82: 2025-07-02T15:47:00 | C82: Boiler 1: Loss of fluidisation under fuel chute
A83: 2025-07-01T03:30:00 | B83: 2025-07-03T00:04:00 | C83: Boiler 3: Loss of combustion control - high CO, SO2 & TOC
A84: 2025-07-03T15:53:00 | B84: 2025-07-05T00:09:00 | C84: Boiler 2: Loss of bed fluidisation under fuel chute
A85: 2025-07-04T21:36:00 | B85: 2025-07-09T00:32:00 | C85: Boiler 1: Loss of bed fluidisation under fuel chute and superheater tube leak
A86: 2025-07-05T14:17:00 | B86: 2025-07-08T04:57:00 | C86: Boiler 2: Furnace positive pressure, burners not starting - loss of top temp and bed not fluidising
A87: 2025-07-09T17:38:00 | B87: 2025-07-12T04:24:00 | C87: Boiler 1: Loss of fluidisation under fuel chute
A88: 2025-07-09T20:11:00 | B88: 2025-07-12T16:38:00 | C88: Boiler 2: Loss of fluidisation under fuel chute
A89: 2025-07-14T10:13:00 | B89: 2025-07-16T10:26:00 | C89: Boiler 2: Loss of fluidisation under fuel chute (BA chain off x5 times over NS 13/7)
A90: 2025-07-16T06:56:00 | B90: 2025-07-18T00:40:00 | C90: Boiler 1: Loss of bed fluidisation
A91: 2025-07-19T15:46:00 | B91: 2025-07-21T10:00:00 | C91: Boiler 2: Loss of bed fluidisation
A92: 2025-07-21T18:19:00 | B92: 2025-07-24T08:20:00 | C92: Boiler 1: Loss of bed fluidisation
A93: 2025-07-23T01:51:00 | B93: 2025-07-25T12:34:00 | C93: Boiler 2: Apron off - bed temps at fuel chute dropping off
A94: 2025-07-26T00:21:00 | B94: 2025-07-29T04:32:00 | C94: Boiler 1: Loss of bed fluidisation after lots of ash cannons
A95: 2025-07-28T21:18:00 | B95: 2025-07-31T03:23:00 | C95: Boiler 2: Loss of bed fluidisation
A96: 2025-08-01T14:36:00 | B96: 2025-08-04T01:49:00 | C96: Boiler 1: Loss of bed fluidisation
A97: 2025-08-06T04:40:00 | B97: 2025-08-12T11:00:00 | C97: Boiler 1: Bed agglomoration and x3 tube leak
A98: 2025-08-09T05:20:00 | B98: 2025-08-15T02:39:00 | C98: Boiler 2: TAF bearing failure
A99: 2025-08-17T03:48:00 | B99: 2025-08-18T23:05:00 | C99: Boiler 1: Loss of bed fluidisation
A100: 2025-08-17T04:46:00 | B100: 2025-08-19T02:04:00 | C100: Boiler 2: Loss of bed fluidisation
A101: 2025-08-20T16:08:00 | B101: 2025-08-22T04:08:00 | C101: Boiler 1: Loss of bed fluidisation
A102: 2025-08-20T21:11:00 | B102: 2025-08-22T13:48:00 | C102: Boiler 1: Loss of bed fluidisation following conveyor damage
A103: 2025-08-23T04:01:00 | B103: 2025-08-24T11:04:00 | C103: Boiler blocked ash drain
A104: 2025-08-25T00:15:00 | B104: 2025-08-27T02:10:00 | C104: Boiler 2: Loss of bed fluidisation - waste building back up fuel chute
A105: 2025-08-25T20:29:00 | B105: 2025-08-27T19:30:00 | C105: Boiler 1: Rapid loss of bed fluidisation
A106: 2025-08-26T13:14:00 | B106: 2025-08-29T09:30:00 | C106: Loss of grate movement Zone 2 RHS
A107: 2025-08-30T16:40:00 | B107: 2025-08-31T23:59:00 | C107: Boiler 2: Tube leak around start up burner header
A108: 2025-09-01 | B108: 2025-09-04T05:48:00 | C108: Boiler 2: Tube leak around start up burner header
A109: 2025-09-01 | B109: 2025-09-02T20:24:00 | C109: Boiler 1: Loss of bed fluidisation
A110: 2025-09-03T20:08:00 | B110: 2025-09-05T08:12:00 | C110: Boiler 1: Blocked ash drain - off waste
A111: 2025-09-08T06:31:00 | B111: 2025-09-09T13:50:00 | C111: Boiler 1: Loss of bed fluidisation
A112: 2025-09-08T10:46:00 | B112: 2025-09-10T09:52:00 | C112: Boiler 2: Loss of bed fluidisation
A113: 2025-09-13 | B113: 2025-09-13T23:59:59 | C113: Boiler 2: Agglomeration
A114: 2025-09-15 | B114: 2025-09-15T23:59:59 | C114: Boiler 1: Agglomeration
A115: 2025-09-16 | B115: 2025-09-16T22:12:00 | C115: Boiler 2: Agglomeration
A116: 2025-09-17 | B116: 2025-09-18T07:16:00 | C116: Boiler 2: Agglomeration
A117: 2025-09-19T16:12:00 | B117: 2025-09-22T21:16:00 | C117: Boiler 1: Bed agglomoration
A118: 2025-09-21T22:10:00 | B118: 2025-09-23T14:53:00 | C118: Boiler 2: Off waste bed agglomoration
A119: 2025-09-26T19:56:00 | B119: 2025-09-28T12:41:00 | C119: Boiler 1: Off waste loss of bed fluidisation
A120: 2025-09-28T13:59:00 | B120: 2025-09-30T14:00:00 | C120: Boiler 2: Off waste loss of bed fluidisation
A121: 2025-10-01 | B121: 2025-10-11T00:25:00 | C121: Boiler 1: Planned outage
A122: 2025-10-01 | B122: 2025-10-14T23:59:00 | C122: Boiler 2: Planned outage
A123: 2025-10-11T02:14:00 | B123: 2025-10-12T08:35:00 | C123: Boiler 1: Off waste apron conveyor defect
A124: 2025-10-13T12:03:00 | B124: 2025-10-15T05:49:00 | C124: Boiler 1: Off waste loss of fluidisation under fuel chute
A125: 2025-10-16T14:24:00 | B125: 2025-10-18T15:04:00 | C125: Boiler 2: Loss of bed fluidisation
A126: 2025-10-17T17:25:00 | B126: 2025-10-19T05:28:00 | C126: Boiler 1: Loss of bed fluidisation
A127: 2025-10-20T12:42:00 | B127: 2025-10-23T05:33:00 | C127: Boiler 1: Loss of bed fluidisation - flue gas fan damper defect delayed restart
A128: 2025-10-24T20:08:00 | B128: 2025-10-25T21:35:00 | C128: Boiler 2: PAC dosing defect
A129: 2025-10-25T20:08:00 | B129: 2025-10-28T20:32:00 | C129: Boiler 1: Loss of bed fluidisation
A130: 2025-10-25T21:59:00 | B130: 2025-10-27T10:14:00 | C130: Boiler 2: Loss of bed fluidisation
A131: 2025-11-01T03:56:00 | B131: 2025-11-08T05:02:00 | C131: Boiler 1: Backpass screw bridged/blocked - eco leak - BA screw water leak
A132: 2025-11-01 | B132: 2025-11-06T12:07:00 | C132: Boiler 2: Ash drain blocked - heavy slagging above bullnose
A133: 2025-11-09T16:09:00 | B133: 2025-11-11T05:02:00 | C133: Boiler 1: Loss of bed fluidisation after furnace wall slag fall
A134: 2025-11-29T00:12:00 | B134: 2025-11-30T23:59:00 | C134: Boiler 2: Banked lack of waste
A135: 2025-12-05T20:30:00 | B135: 2025-12-08T23:00:00 | C135: Boiler 2: Banked lack of waste - restart delayed due to blocked recirc hopper
A136: 2025-12-12T13:45:00 | B136: 2025-12-31T23:59:00 | C136: Boiler 2: Lack of waste
A137: 2025-12-16T20:10:00 | B137: 2025-12-18T06:40:00 | C137: Boiler 1: Off waste - essential maintenance

Sheet Perf. Form 1
A1: =+'Cover Page'!C39 -> 2025 | B1: Annual Reporting Performance Form 1
A3: =+'Cover Page'!B31 -> Permit PPC/A/1003157/CP01/VN01 | F3: Operator: | G3: =+'Cover Page'!B37 -> MVV Environment Baldovie Ltd
A4: Facility: | B4: =+'Cover Page'!B33:I33 -> MVV Environment Baldovie Ltd | F4: Form: | G4: Performance 1
A6: Reporting Period from: | D6: 2025-01-01 | F6: to: | G6: 2025-12-31
A8: =+A1 -> 2025 | B8: Annual Reporting of Waste Disposal and Recovery
A9: Waste Description | C9: Disposal Route(s) | E9: Disposal Tonnes | G9: Recovery Tonnes | I9: % / tonne of waste incinerated
A10: 1) Hazardous Wastes
A11: APC Residues | C11: Recovered | E11: 0 | G11: 5265.54 | I11: =IF((E11+G11)>0,(E11+G11)/'Operational Data'!$G$24, "-") -> 0.03171714748
A12: IBA | C12: - | E12: 0 | G12: 0 | I12: =IF((E12+G12)>0,(E12+G12)/'Operational Data'!$G$24, "-") -> -
I13: =IF((E13+G13)>0,(E13+G13)/'Operational Data'!$G$24, "-") -> -
I14: =IF((E14+G14)>0,(E14+G14)/'Operational Data'!$G$24, "-") -> -
A15: Total Hazardous Waste | E15: =SUM(E11:F14) -> 0 | G15: =SUM(G11:H14) -> 5265.54 | I15: =IF((E15+G15)>0,(E15+G15)/'Operational Data'!$G$24, "-") -> 0.03171714748
A17: 2) Non-Hazardous Wastes
A18: IBA | C18: Recovered | G18: 35053.89 | I18: =IF((E18+G18)>0,(E18+G18)/'Operational Data'!$G$24, "-") -> 0.2111482201
A19: Metal | C19: Recycled | G19: 1091.84 | I19: =IF((E19+G19)>0,(E19+G19)/'Operational Data'!$G$24, "-") -> 0.006576732928
A20: Process Water | C20: - | I20: =IF((E20+G20)>0,(E20+G20)/'Operational Data'!$G$24, "-") -> -
A21: Cyclone Ash | C21: Landfilled | G21: 2745.08 | I21: =IF((E21+G21)>0,(E21+G21)/'Operational Data'!$G$24, "-") -> 0.01653507659
I22: =IF((E22+G22)>0,(E22+G22)/'Operational Data'!$G$24, "-") -> -
A23: Total Non-Hazardous Waste | E23: =SUM(E18:F22) -> 0 | G23: =SUM(G18:H22) -> 38890.81 | I23: =IF((E23+G23)>0,(E23+G23)/'Operational Data'!$G$24, "-") -> 0.2342600296
A24: TOTAL WASTE | E24: =+E23+E15 -> 0 | G24: =+G23+G15 -> 44156.35 | I24: =IF((E24+G24)>0,(E24+G24)/'Operational Data'!$G$24, "-") -> 0.2659771771
A26: Operator’s comments :
A27: Effluent water is monitored by Scottish Water under trade effluent consent. Each plants is separately consented. There were no breaches of consent conditions for either plant, further details can be found in the Water section.
A31: =+A1 -> 2025 | B31: Annual Reporting of Water and Other Raw Material Usage
A32: Raw Material | E32: Usage | G32: Unit | H32: Specific Usage | J32: Unit
A33: Mains Water | E33: =+'Operational Data'!G43/1000 -> 124.552 | G33: m3 | H33: =IF(E33>0,E33/'Operational Data'!$G$24,"-") -> 0.000750242929 | J33: m3/te
A34: Total Water | E34: =+'Operational Data'!G44+'Operational Data'!G43/1000 -> 100489.552 | G34: m3 | H34: =IF(E34>0,E34/'Operational Data'!$G$24,"-") -> 0.605302009 | J34: m3/te
A35: Urea / Ammonia | E35: =+'Operational Data'!G45 -> 246400 | G35: kg | H35: =IF(E35>0,E35/'Operational Data'!$G$24,"-") -> 1.484198228 | J35: kg/te
A36: Activated Carbon | E36: =+'Operational Data'!G47 -> 183410 | G36: kg | H36: =IF(E36>0,E36/'Operational Data'!$G$24,"-") -> 1.104775962 | J36: kg/te
A37: Lime / hydrated lime / Sodium Bicarb. | E37: =+'Operational Data'!G48 -> 2213000 | G37: kg | H37: =IF(E37>0,E37/'Operational Data'!$G$24,"-") -> 13.33007581 | J37: kg/te
A39: Operator’s comments :
A40: All raw material usage is in line with design values. Reduced availability on Lines 1 and 2 has led to lower total usage.
A43: =+A31 -> 2025 | B43: Annual Reporting of other performance indicators
A44: Parameter | C44: Results by Line
C45: A1 | D45: A2 | E45: A3 | F45: A4 | G45: A5 | I45: Turbine 1 | J45: Turbine 2
A46: Operating hours for the year, hours | C46: 5471 | D46: 4559 | E46: 7841 | I46: 6498 | J46: 7832
A47: Number of periods of abnormal operation, qty. | C47: 0 | D47: 0 | E47: 0
A48: Cumulative hours of abnormal operation for this year, hours | C48: 0 | D48: 0 | E48: 0
A50: Operator’s comments : | L50: Notes:
A51: Boilers 1&2 had poor availability up to November. Availability has significantly improved after the autumn outage. | L51: Where there has been any exceedance of the 60 hour AO limit provide the notification date and a summary of the cause and actions in this box.
A54: Signed: | G54: Date:

Sheet Energy Form 1
A1: =+'Cover Page'!C39 -> 2025 | B1: Annual Reporting of Energy Usage/Export
A3: =+'Cover Page'!B31 -> Permit PPC/A/1003157/CP01/VN01 | F3: Operator: | G3: =+'Cover Page'!B37 -> MVV Environment Baldovie Ltd
A5: Facility: | B5: =+'Cover Page'!B33:I33 -> MVV Environment Baldovie Ltd | F5: Form: | G5: Energy 1
A7: Reporting Period from: | D7: =+'Perf. Form 1'!D6:E6 -> 2025-01-01 | F7: to: | G7: =+'Perf. Form 1'!G6:H6 -> 2025-12-31
A9: Energy Source | D9: Energy Usage | F9: Unit | G9: Specific Usage (KWh/tonne incinerated
A10: Electricity Produced | D10: =+'Operational Data'!G27 -> 115912 | F10: MWh | G10: =+'Operational Data'!H27 -> 698.1996145
A11: Electricity Imported | D11: =+'Operational Data'!G29 -> 1791.5 | F11: MWh | G11: =+'Operational Data'!H29 -> 10.79115717
A12: Electricity Exported | D12: =+'Operational Data'!G28 -> 94322 | F12: MWh | G12: =+'Operational Data'!H28 -> 568.1515636
A13: Gas Oil | D13: 1241.08 | F13: tonnes
A14: Steam/hot water exported | D14: =+'Operational Data'!G31 -> 827.28 | F14: MWh | G14: =+'Operational Data'!H31 -> 4.983147363
A18: Operator’s comments : | K18: Notes:
A19: MVV Environment Baldovie began heat export to Michelin Scotland Innovation Parc (MSIP) in Nov 2023; this has continued reliably throughout 2025. | K19: Include details of any new heat export implemented or in development.
A29: Signed: | G29: Date:

Sheet Permit Compliance
A1: =+'Cover Page'!$B$29 -> Annual Performance Report 2025 | E1: =+'[3]Cover Page'!$B$33 -> MVV Environment Baldovie Ltd
A3: Summary of Permit Compliance
A5: Compliance with permit limits for continuously monitored pollutants
A7: The plant met its emission limits as shown in the table below:
A8: Substance | C8: A1 Percentage time compliant during operationNote 1 | L8: Notes:
C9: Half-hourly limit | F9: Daily limit | L9: Note 1: Please report to 2 decimal places, i.e. xx.xx% Note 2: Please enter information here (rather than just referencing the notifications that were sent to the EA) including where relevant the incineration line reference, pollutant and value of the measured result for any ELV exceedances.
A10: Particulates | C10: 1 | F10: 1
A11: Oxides of nitrogen | C11: 0.9934 | F11: 1
A12: Sulphur dioxide | C12: 0.9997 | F12: 1
A13: Carbon monoxide | C13: 100% 95% of 10-min averages | F13: 1
A14: Total organic carbon | C14: 0.9928 | F14: 1
A15: Hydrogen chloride | C15: 0.9956 | F15: 1
A16: Hydrogen fluoride | C16: 1 | F16: 1
A17: Ammonia | C17: 1 | F17: 1
A19: Substance | C19: A2 Percentage time compliant during operationNote 1
C20: Half-hourly limit | F20: Daily limit
A21: Particulates | C21: 0.9997 | F21: 1
A22: Oxides of nitrogen | C22: 0.9895 | F22: 1
A23: Sulphur dioxide | C23: 1 | F23: 1
A24: Carbon monoxide | C24: 100% 95% of 10-min averages | F24: 1
A25: Total organic carbon | C25: 0.9995 | F25: 1
A26: Hydrogen chloride | C26: 0.9987 | F26: 1
A27: Hydrogen fluoride | C27: 1 | F27: 1
A28: Ammonia | C28: 1 | F28: 1
A30: Substance | C30: A3 Percentage time compliant during operationNote 1
C31: Half-hourly limit | F31: Daily limit
A32: Particulates | C32: 1 | F32: 1
A33: Oxides of nitrogen | C33: 0.9996 | F33: 1
A34: Sulphur dioxide | C34: 0.9996 | F34: 1
A35: Carbon monoxide | C35: 99.72% 95% of 10-min averages | F35: 0.9863
A36: Total organic carbon | C36: 0.9993 | F36: 1
A37: Hydrogen chloride | C37: 0.9989 | F37: 1
A38: Hydrogen fluoride | C38: 1 | F38: 1
A39: Ammonia | C39: 1 | F39: 1

Sheet Permit Compliance cont
A1: =+'Cover Page'!$B$29 -> Annual Performance Report 2025 | E1: =+'Cover Page'!$B$33 -> MVV Environment Baldovie Ltd
A3: Summary of Permit Compliance
A5: Compliance with permit limits for continuously monitored pollutants
A7: Summary of non-compliances under the permit Note 2
A8: Date | B8: Summary of non-compliance Note 3 | D8: Reason | G8: Measures taken to prevent reoccurrence | L8: Notes:
L9: Note 1: Please report to 2 decimal places, i.e. xx.xx% Note 2: Please enter into this table any permit non-compliances which you have notified to tSEPA (e.g. ELV exceedances). There is no need to enter any notifications which were subsequently assessed by SEPA not to be permit breaches. Note 3: Please enter information here (rather than just referencing the notifications that were sent to SEPA) including where relevant the incineration line reference, pollutant and value of the measured result for any ELV exceedances.
A10: 16/16/2025 | B10: Annual outage bunker extraction odour assessment exceedance | D10: High feedstock volume, increasing bunker odour levels, and reduced efficiency of odour abatement contributed to the increased odour within the stack. No complaints were received during this period. | G10: Odour abatement to be replaced
A11: 2025-07-01 | B11: 95th%ile CO 10-minute average on Boiler 3. | D11: Start-up | G11: Review of start-up procedures
A17: Summary of any complaints received and actions to taken to resolve them.
A18: Date | B18: Summary of complaint [including Line/Reference] | E18: Reason (including whether substantiated by the operator or the EA) | H18: Measures taken to prevent reoccurrence
A19: 2025-07-05 | B19: Odour Complaint reported to SEPA, received from the north-north-west. | E19: Not substantiated | H19: Investigations found no issues to resolve
A20: 2025-12-08 | B20: Odour Complaint received by MEB from the west-northwest. | E20: Not substantiated | H20: Investigations found no issues to resolve

Sheet Improvements
A1: =+'Cover Page'!$B$29 -> Annual Performance Report 2025 | E1: =+'Cover Page'!$B$33 -> MVV Environment Baldovie Ltd
A3: Summary of Plant Improvements
A5: Summary of any efficiency improvements that have been completed within the year.
A6: DCS changes were implemented to significantly improve the system's ability to withstand overpressure events, thereby reducing unplanned downtime, minimising emission spikes, and lowering gas oil consumption. The Line 3 effluent system has been enhanced to reduce discharge through the diversion of collected water within the FGT to the dirty process water system, enabling reuse.
A16: Summary of any permit improvement conditions that have been completed within the year and the resulting environmental benefits.
A17: N/A
A27: Summary of any changes to the plant or operating techniques which required a variation to the permit and a summary of the resulting environmental impact.
A28: N/A
A38: Summary of any other improvements made to the plant or planned to be made and a summary of the resulting environmental benefits.
A39: Energy exports from all 3 lines are under investigation, such as private wire electrical supplier, waste heat recovery and feasibility studies into district heating schemes Easydos PAC controller was upgraded to increase PAC dosing reliability and accuracy.

Sheet Public Liasion
A1: =+'Cover Page'!$B$29 -> Annual Performance Report 2025 | E1: =+'Cover Page'!$B$33 -> MVV Environment Baldovie Ltd
A3: Details of Public & Stakeholder Liaison
A5: Summary of events held during the reporting year.
A6: Date | C6: Description
A7: January | C7: Step Up to Enterprise Event - Brechin
A8: January | C8: Dundee & Angus Gardyne College Campus Apprenticeship Job Fair
A9: January | C9: MVV Environment Tour - DYW Team
A10: January | C10: Carnoustie High School Mock Interviews S4
A11: January | C11: MVV Site Visit Dundee College Engineering Students (13)
A12: January | C12: Abroath Locality ASN (5)
A13: January | C13: Primary STEM Career Event (session 4 Term 3) – St Thomas Primary School
A14: January | C14: Liff Primary School MVV Visit (5)
A15: January | C15: St Paul's RC Academy ASN Visit MVV (11)
A16: January | C16: Southmuir Primary School MVV Tour (25)
A17: January | C17: Bullumbie P2 Visit MVV (28)
A18: February | C18: Alator contractors x 2 – Defibrillator Training - 2 hours.
A19: February | C19: Brechin High School – Careers Event
A20: February | C20: Developing the Young Workforce, Visit and Tour
A21: February | C21: Step Up to Enterprise – Websters High School
A22: February | C22: Carnoustie High School – Mock Interviews
A23: February | C23: MVV Site Visit Dundee College (13) - Engineering
A24: February | C24: MVV Visit - Liff Primary School Visit (24)
A25: February | C25: MVV Visit - St Paul’s ASN Visit (5)
A26: February | C26: MVV Visit - Claypotts Castle Primary School (26)
A27: February | C27: MVV Visit - Braeview Academy - ESA class (8)
A28: February | C28: MVV Visit - Southmuir Primary School (25)
A29: February | C29: MVV Visit - Bullumbie P2 Visit MVV (28)
A30: March | C30: Local contractor – CEF working with Maintenance Manager for prospective tendering – 2 hours mentoring.
A31: March | C31: Meet the Buyer Tayside – MSIP Hub
A32: March | C32: Primary STEM Career Event (Session 6 Term 3) - Wardykes
A33: March | C33: STEM Ambassador Renewables talk - Wardykes Primary P4 – Andy Swaine
A34: March | C34: Dundee & Angus Gardyne College Campus Apprenticeship Job Fair
A35: March | C35: MVV Tour - Carlogie Primary School (11)
A36: March | C36: Craigowl Primary School, P5 (31)
A37: March | C37: MVV Tour Eastern Primary P4a (24)
A38: March | C38: MVV Tour Eastern Primary P4b (24)
A39: March | C39: Abertay - Climate Café - Speaker
A40: April | C40: St Paul’s RC Academy (Careers Focus) (15)
A41: April | C41: MVV visit Brechin High School - S3 (11)
A42: April | C42: St Peter and Paul RC Primary School visit MVV (25)
A43: April | C43: Retired Masons Community Group Visit to MEB (15)
A44: April | C44: Monikie Primary School MVV Visit (34)
A45: May | C45: STEM Day - St Peter and Paul RC Primary - P4/5, P5, P6a and P6b.
A46: May | C46: Fintry Primary School Presents Fintry Futures
A47: May | C47: MVV Visit - St Josephs and Victoria Park (10)
A48: May | C48: MVV Visit Changemakers Whitfield Community Group
A49: May | C49: St Paul’s RC Academy MVV Visit (10)
A50: May | C50: Whitehills Primary School MVV Visit Primary 6a (20)
A51: May | C51: Whitehills Primary School MVV Visit Primary 6 (20)
A52: May | C52: Rainbows Evening Visit (15)
A53: June | C53: Curriculum Support and Awareness Raising Activity
A54: June | C54: Primary STEM Career Event - St Thomas Primary School
A55: June | C55: Step Up with Enterprise- Baldragon Academy
A56: June | C56: UoD students visit MVV Environment (10)
A57: July | C57: Angus Primary STEM Career Event – Inverkeilor Primary School
A58: July | C58: Step Up with Enterprise- Baldragon Academy
A59: July | C59: University of Dundee students visit MVV Environment (10)
A60: July | C60: Open Day 2025 (170 people)
A61: September | C61: Behavioural Safety Event, Brad Francis – mentoring 6 hours – Intech.
A62: September | C62: Step Up to Enterprise – Monifieth High School
A63: September | C63: Baldragon Academy Careers Fair
A64: September | C64: Andover Primary Class - Waste Presentation - Outreach
A65: September | C65: Ardler Primary School Visit P6/7 (27)
A66: September | C66: Ballumbie Primary school Visit P4 (26)
A67: September | C67: St Pius Primary Visit P5 (24)
A68: September | C68: St Ninian's Primary Visit P4 (33)
A69: September | C69: SRUC Visit (12) – Uni Visit
A70: October | C70: Work Experience, Harris, 4th Year.
A71: October | C71: Timmergreens Primary School P5 Presentation (Outreach)
A72: October | C72: Andover Primary P4 Presentation (Outreach)
A73: October | C73: Carlogie Primary School 2 x P5 Presentation (Outreach)
A74: October | C74: Greenfields - DYW and Step Up Enterprise Event
A75: October | C75: Northmuir Primary School Presentation (Outreach)
A76: October | C76: STEM Careers Fair - Gardyne Campus
A77: October | C77: St Pius 2 x P5 Presentation (Outreach)
A78: November | C78: MVV Presentation P1, P1/2, P2, P2/3, P3/4 - Camperdown Primary School
A79: November | C79: MVV Presentation P4/5, P5/6, P6/7, P7 - Camperdown Primary School
A80: November | C80: MVV Presentation - Blackness Primary School – Upper School
A81: November | C81: MVV Presentation S2s - Greenfield Academy
A82: November | C82: MVV Visit - Carlogie Primary - P7 (24)
A83: November | C83: MVV Visit - Climate Cafe
A84: November | C84: MVV Visit - Northmuir Primary School - P7 (29)
A85: December | C85: AIMs Mentor with Carnoustie High School, 2nd year student, 1 hour a week.
A86: December | C86: St Pius X Primary Visit P3 (26)
A87: December | C87: Craigowl View Primary Visit (10)
A97: List of events planned for next year
A98: Date | C98: Description
A99: January | C99: Angus Council Convenor Visit
A101: January | C101: DYW Business Breakfast
A103: February | C103: St Pius Primary 5s Visit (17)
A105: February | C105: STEM Outreach Workshop
A107: March | C107: Meet the Buyer - MSIP
A109: March | C109: Abertay University Visit (30)
A111: March | C111: LEGO® League 2026 - Unearthed - Judge
A113: July | C113: Baldovie Open Day 2026
A116: If you wish to be involved in the public liaison programme, please contact _________________

Sheet CO2 N2O
A1: =+'Cover Page'!$B$29 -> Annual Performance Report 2025 | C1: =+'Cover Page'!$B$33 -> MVV Environment Baldovie Ltd
A3: Carbon dioxide emissions and biogenic content of waste inputs | F3: Notes:
A5: Carbon dioxide emissions (all types of plant)
B6: Annual mass of carbon dioxide released | C6: tonnes | D6: 162976
B7: Annual mass of carbon dioxide released per tonne of waste burned | C7: t CO2 / t waste | D7: =D6/'Operational Data'!G24 -> 0.9816911138 | F7: Note 1: All permits require operators to continuously monitor CO2 to EN14181 and flow to BS EN 16911-2 (unless otherwise agreed in writing). Operators must therefore use the results from these instruments to calculate their annual CO2 emissions. Where an operator does not have a flow meter calibrated to BS EN 16911-2, the averaged flow measurement from that year's periodic monitoring can be used instead. If the plant does not have calibrated CO2 CEMS, a suitably justified emissions factor can be used.
B8: Annual mass of carbon dioxide released per MWh of energy exported | C8: t CO2 / MWh export | D8: =D6/'Operational Data'!G28 -> 1.727868366
B9: Description of how annual carbon dioxide mass emission has been calculated. See Note 1 | C9: Continuous Emissions Monitoring System (BS EN 14181/BS EN 15267-3)
A10: Nitrous oxide emissions (only plants which use ammonia or urea to abate NOx emissions)
B11: Annual mass emissions of nitrous oxide | C11: tonnes N2O | D11: 4.14
B12: Description of how annual nitrous oxide mass emission has been calculated See Note 2 | C12: Continuous Emissions Monitoring System (BS EN 14181/BS EN 15267-3) | F12: Note 2: All permits require operators to continuously monitor N2O to EN14181 and flow to BS EN 16911-2, unless otherwise agreed in writing. Operators must therefore use the results from these instruments to calculate their annual N2O emissions. Where an operator does not have a flow meter calibrated to BS EN 16911-2, the averaged flow measurement from periodic monitoring can be used instead. If the plant does not have calibrated N2O CEMS, data from periodic monitoring or a suitably justified emissions factor can be used instead.
A13: Total annual carbon dioxide + nitrous oxide emissions. See Note 3. | C13: tonnes CO2e | D13: =D6+(D11*265) -> 164073.1 | F13: Note 3: Total annual carbon dioxide and nitrous oxide emissions reported as carbon dioxide equivalent where 1 tonne nitrous oxide is equivalent to 265 tonnes carbon dioxide.
A14: Biogenic CO2 emissions (See Note 4) | F14: Note 4: Only plants combusting residual municipal waste, refuse derived fuel or solid recovered fuel need complete this section.
B15: Percentage of total carbon dioxide emissions arising from biogenic waste | C15: % | D15: 0.52
B16: No. of measurements undertaken | C16: Number | D16: 12
B17: Description of how percentage biogenic carbon dioxide emissions have been measured or calculated. See Note 5 | C17: ASTM D6866-16 methodology (Line 3 only) | F17: Note 5: The results from C14 sampling should be used if this is carried out at the plant (either via an installed sampler or from spot samples). Otherwise, as an approximation (and in lieu of any more accurate metrics which may be developed in future), the measured or estimated biogenic fraction by net calorific value (see Note 6) can be assumed to be the same as the biogenic CO2 fraction of the total CO2 emissions from the plant.
A18: Biogenic fraction of waste feedstock (See Note 4)
B19: Yearly average biogenic percentage of the waste by net calorific value (NCV) | C19: % | D19: =(0.39*0.52)/(0.47-0.08*0.52) -> 0.4733893557
B20: Description of how biogenic percentage (by NCV) has been calculated or estimated. See Note 6 | C20: Calculation outlined in REA Energy Content of Fuels C14 Report using the Line 3 biogenic carbon fraction. PBE=(BGVC x BCAR)/(FGCV+ BCATx(BGCV-FGCV)) | F20: Note 6: If C14 sampling is carried out at the plant, the methodology set out in the embedded document entitled "Renewable Energy Association Energy Content of Fuels - Description of Method" embedded below can be used to calculate the biogenic percentage by net calorific value. Otherwise, data from waste sampling or BIOMA software can be used; or if none of these are available, an estimated figure with justification or a figure assumed on the basis of up-to-date industry data can be used.
B21: Yearly average biogenic percentage of the waste by mass | C21: % | D21: =D15 -> 0.52
B22: If waste sampling undertaken, no. of samples used to ascertain average biogenic percentages above | C22: Number | D22: N/A
B23: Description of how biogenic percentage (by mass) has been calculated or estimated. See Note 7 | C23: Assumed based on biogenic flue gas CO2 fraction. | F23: Note 7: Where available, data from waste sampling should be used; otherwise, an estimated figure with justification can be used, or a figure assumed on the basis of up-to-date industry data.
B25: Comments:

Sheet Residues
A1: =+'Cover Page'!$B$29 -> Annual Performance Report 2025 | E1: =+'Cover Page'!$B$33 -> MVV Environment Baldovie Ltd
A3: Summary of Residue Handling for the reporting year
A5: FA, CA and APCr all taken to Augean at Port Clarence and treated using their R Code to be reused onsite. IBA taken to Rocksolid at Ladybank and treated, agreagate reused, metals recycled | K5: Include in here a summary of residue handling regimes and destinations
A28: Residue Quality Monitoring Requirements
A30: Summary of monitoring undertaken and compliance
A31: Quarterly sampling of Line 1 & 2 and Line 3 residues as per Permit Condition 8.1.3.
A38: Commentary on any specific events
A39: Date & Event | C39: Description
A40: 2025-02-13 | C40: Line 1&2 IBA HP14 failure
A42: 2025-11-19 | C42: Line 1&2 IBA HP14 failure
A52: Residue Quality Monitoring Results
A53: Parameter (unit) | C53: Limit* | D53: Normal Operation
D54: Bottom ash | F54: APC Residues
A55: Loss on Ignition (average %) | C55: <5% | D55: 1.56
A56: Total Organic Carbon (average %) | C56: <3% | D56: 0.33
A57: No. of Assessments Undertaken | C57: --- | D57: 8 | F57: 8
A58: No. of Hazardous Results | C58: --- | D58: 2
A59: * The permit will specify a limit of either 5% loss on ignition or 3% total organic carbon. If both are measured anyway, please enter the results here, even where the limit does not apply.
A61: Comments :

Sheet Water
A1: =+'Cover Page'!$B$29 -> Annual Performance Report 2025 | E1: =+'Cover Page'!$B$33 -> MVV Environment Baldovie Ltd
A3: Emissions to Water
A5: Summary of monitoring undertaken and compliance
A6: The MG plant is designed for zero emissions to water with process wastes being recycled and re-used within the plant. However, any surplus waste water arising is fed to the sewer and is monitored by Scottish Water under a Trade Effluent Consent. Trade effluent is monitored for pH, Flow and Temperature to comply with the Water Trade Effluent Consent Registration Number 3341A/3 for Lines 1 and 2 Plant and Consent Registration Number 80296A/01/C for Line 3 Plant, Daily visual checks are made on the drainage systems. Water is extracted from the Dighty Burn through a water abstraction licence CAR/1004581. The actual annual abstraction volume is reported in the operational data section.
A8: The FB plant uses considerable volumes of water to meet the requirements of the surface condenser and wet cooling tower for evaporation and blowdown.
A10: The discharge rate of Trade Effluent from both plants is metered
A13: Commentary on any specific events
A14: Date & Event | C14: Description
A22: Emissions to Water / Sewer
A23: Parameter | D23: Monitoring Frequency | F23: Limit | G23: Target | H23: Max. | I23: Average

Sheet Air (periodic)
A1: =+'Cover Page'!$B$29 -> Annual Performance Report 2025 | E1: =+'Cover Page'!$B$33 -> MVV Environment Baldovie Ltd
A3: Emissions to Air (periodically monitored)
A5: Summary of monitoring undertaken, standards used and compliance | L5: Notes:
A6: Biannual testing of all lines as per Permit condition 6.4, per the requirements of BS EN ISO/IEC 17025 Line 1: First half: 30th May,3rd – 4th July. Second half: 31st October, 2rd - 5th Decemeber Line 2: First half: 20th - 23rd May. Second half: 28th October - 6th November Line 3: First half: 27th - 30th May. Second half: 28nd – 31st October Quarterly olfactory sampling on lines 1+2 was conducted by a specialised contractor in line with the site permit condition to implement and maintain an Odour Management Plan (OMP). All results were submitted to SEPA with the 2025 Quarterly reports. The olfactory sampling systems test on line 3 was conducted by a specialised contractor in line with the site permit condition to implement and maintain an Odour Management Plan (OMP). Result submitted to SEPA with the Quarterly report. | L6: Template may require adjustment for any bespoke monitoring requirements of permit - please also check that all default ELV values, reference periods and the stated oxygen reference value match those for your plant, and edit if necessary!
A9: Results of emissions to air that are periodically monitored - oxygen reference 11%
A10: Substance | C10: Ref. Period | D10: Emission Limit Value | F10: Average | L10: User to add additional tables/ columns as necessary, depending on whether quarterly or bi-annual reporting is required for the compliance year
F11: A1 | H11: A2 | J11: A3
F12: Half 1 | G12: Half 2 | H12: Half 1 | I12: Half 2 | J12: Half 1 | K12: Half 2
A13: Particulates | C13: Ave value | D13: 30 mg/m3 | F13: 5.3 | G13: 1.7 | H13: 1.6 | I13: 1.7 | J13: 4.2 | K13: 2.2
A14: PM10 | C14: Ave value | D14: None set mg/m3 | F14: 0.35 | G14: 0.47 | H14: 0.36 | I14: 10 | J14: 0.18 | K14: 0.27
A15: PM2.5 | C15: Ave value | D15: None set mg/m3 | F15: 0.25 | G15: 0.47 | H15: 0.26 | I15: 0.69 | J15: 0.13 | K15: 0.2
A16: Oxides of nitrogen | C16: Ave value | D16: 400 mg/m3 | F16: 249 | G16: 210 | H16: 197 | I16: 171 | J16: 197 | K16: 183
A17: Sulphur dioxide | C17: Ave value | D17: 200 mg/m3 | F17: 3.5 | G17: 2.5 | H17: 3.5 | I17: 2.4 | J17: 0.96 | K17: 3.9
A18: Carbon monoxide | C18: Ave value | D18: 100 mg/m3 | F18: 5.4 | G18: 7.6 | H18: 3.8 | I18: 13.6 | J18: 8 | K18: 6
A19: Total Organic Carbon | C19: Ave value | D19: 20 mg/m3 | F19: 1.5 | G19: 0.38 | H19: 0.22 | I19: 0.77 | J19: 0.82 | K19: 0.044
A20: Hydrogen chloride | C20: Ave value | D20: 60 mg/m3 | F20: 12.6 | G20: 7.6 | H20: 17.2 | I20: 2.7 | J20: 6.2 | K20: 3.2
A21: Hydrogen fluoride | C21: Ave value | D21: 1 mg/m3 | F21: 0.19 | G21: 0.021 | H21: 0.1 | I21: 0.024 | J21: 0.11 | K21: 0.16
A22: Ammonia | C22: Ave value | D22: 10 mg/m3 | F22: 0.41 | G22: 3.6 | H22: 0.33 | I22: 1.3 | J22: 0.41 | K22: 4.4
A23: Nitrous oxide | C23: Ave value | D23: None set mg/m3 | F23: 3.4 | G23: 4.3 | H23: 2.5 | I23: 1.9 | J23: 4.8 | K23: 8.1
A24: Cd and Tl and their compounds | C24: 0.5-8hrs | D24: 0.02 mg/m3 | F24: 0.0021 | G24: 0.00157 | H24: 0.0015 | I24: 0.0015 | J24: 0.0013 | K24: 0.0011
A25: Hg and its compounds | C25: 0.5-8hrs | D25: 0.02 mg/m3 | F25: 0.00097 | G25: 0.00092 | H25: 0.00072 | I25: 0.00069 | J25: 0.00092 | K25: 0.00079
A26: Sb, As, Pb, Cr, Co, Cu, Mn, Ni, V and their compounds | C26: 0.5-8hrs | D26: 0.3 mg/m3 | F26: 0.043 | G26: 0.011 | H26: 0.019 | I26: 0.011 | J26: 0.067 | K26: 0.048
A27: Polychlorinated dibenzo-p-dioxins and furans (I-TEQ) | C27: 6-8hrs | D27: 0.04/0.06 ng/m3 | F27: 0.0082 | G27: 0.0028 | H27: 0.019 | I27: 0.016 | J27: 0.0054 | K27: 0.00042
A28: PCBs (WHO-TEQ Humans / Mammals) | C28: 6-8hrs | D28: None set ng/m3 | F28: 6.7e-05 | G28: 2.5e-05 | H28: 0.009 | I28: 0.0018 | J28: 0.00052 | K28: 3.4e-05
A29: PCBs (WHO-TEQ Fish) | C29: 6-8hrs | D29: None set ng/m3 | F29: 0.0028 | G29: 0.0011 | H29: 0.015 | I29: 0.0035 | J29: 0.0012 | K29: 0.00025
A30: PCBs (WHO-TEQ Birds) | C30: 6-8hrs | D30: None set ng/m3 | F30: 6.7e-05 | G30: 2.5e-05 | H30: 0.00042 | I30: 8.6e-05 | J30: 2.5e-05 | K30: 2.2e-06
A31: Polychlorinated dibenzo-p-dioxins and furans (WHO-TEQ Humans / Mammals) | C31: 6-8hrs | D31: None set ng/m3 | F31: 0.0076 | G31: 0.0024 | H31: 0.018 | I31: 0.013 | J31: 0.0054 | K31: 0.00039
A32: Polychlorinated dibenzo-p-dioxins and furans (WHO-TEQ Fish) | C32: 6-8hrs | D32: None set ng/m3 | F32: 0.011 | G32: 0.0047 | H32: 0.024 | I32: 0.03 | J32: 0.0066 | K32: 0.0013
A33: Polychlorinated dibenzo-p-dioxins and furans (WHO-TEQ Birds) | C33: 6-8hrs | D33: None set ng/m3 | F33: 0.0067 | G33: 0.0031 | H33: 0.019 | I33: 0.017 | J33: 0.0044 | K33: 0.00038
A34: Polybrominated dibenzo-p-dioxins and furans (I-TEQ) | C34: 6-8hrs | D34: None set ng/m3 | F34: 0.0041 | G34: 0.00076 | H34: 0.0032 | I34: 0.002 | J34: 0.0026 | K34: 0.00029
A35: Anthanthrene | C35: 6-8hrs | D35: None set µg/m3 | F35: 0.03866666667 | G35: 0.028 | H35: 0.02566666667 | I35: 0.028 | J35: 0.017 | K35: 0.01166666667
A36: Benzo(a)anthracene | C36: 6-8hrs | D36: None set µg/m3 | F36: 0.045 | G36: 0.028 | H36: 0.02966666667 | I36: 0.028 | J36: 0.02 | K36: 0.01166666667
A37: Benzo(a)pyrene | C37: 6-8hrs | D37: None set µg/m3 | F37: 0.03866666667 | G37: 0.028 | H37: 0.026 | I37: 0.028 | J37: 0.017 | K37: 0.01166666667
A38: Benzo(b)fluoranthene | C38: 6-8hrs | D38: None set µg/m3 | F38: 0.044 | G38: 0.028 | H38: 0.02566666667 | I38: 0.028 | J38: 0.04833333333 | K38: 0.01166666667
A39: Benzo(b)naptho(2,1-d) thiophene | C39: 6-8hrs | D39: None set µg/m3 | F39: 0.03966666667 | G39: 0.028 | H39: 0.02566666667 | I39: 0.028 | J39: 0.04833333333 | K39: 0.01166666667
A40: Benzo(c)phenanthrene | C40: 6-8hrs | D40: None set µg/m3 | F40: 0.03866666667 | G40: 0.028 | H40: 0.02566666667 | I40: 0.028 | J40: 0.024 | K40: 0.01166666667
A41: Benzo(ghi)perylene | C41: 6-8hrs | D41: None set µg/m3 | F41: 0.03866666667 | G41: 0.07566666667 | H41: 0.02566666667 | I41: 0.029 | J41: 0.036 | K41: 0.01166666667
A42: Benzo(k)fluoranthene | C42: 6-8hrs | D42: None set µg/m3 | F42: 0.03866666667 | G42: 0.028 | H42: 0.02566666667 | I42: 0.028 | J42: 0.017 | K42: 0.01166666667
A43: Cholanthrene | C43: 6-8hrs | D43: None set µg/m3 | F43: 0.03866666667 | G43: 0.028 | H43: 0.02566666667 | I43: 0.028 | J43: 0.017 | K43: 0.01166666667
A44: Chrysene | C44: 6-8hrs | D44: None set µg/m3 | F44: 0.08233333333 | G44: 0.028 | H44: 0.04733333333 | I44: 0.028 | J44: 0.1196666667 | K44: 0.01166666667
A45: Cyclopenta(cd)pyrene | C45: 6-8hrs | D45: None set µg/m3 | F45: 0.05933333333 | G45: 0.028 | H45: 0.02566666667 | I45: 0.028 | J45: 0.01966666667 | K45: 0.01166666667
A46: Dibenzo(ai)pyrene | C46: 6-8hrs | D46: None set µg/m3 | F46: 0.03866666667 | G46: 0.028 | H46: 0.02566666667 | I46: 0.028 | J46: 0.017 | K46: 0.01166666667
A47: Dibenzo(ah)anthracene | C47: 6-8hrs | D47: None set µg/m3 | F47: 0.03866666667 | G47: 0.028 | H47: 0.02566666667 | I47: 0.028 | J47: 0.017 | K47: 0.01166666667
A48: Fluoranthene | C48: 6-8hrs | D48: None set µg/m3 | F48: 0.6633333333 | G48: 0.3933333333 | H48: 0.86 | I48: 0.3333333333 | J48: 0.56 | K48: 0.09666666667
A49: Indeno(123-cd) pyrene | C49: 6-8hrs | D49: None set µg/m3 | F49: 0.03866666667 | G49: 0.028 | H49: 0.02566666667 | I49: 0.028 | J49: 0.017 | K49: 0.01166666667
A50: Naphthalene | C50: 6-8hrs | D50: None set µg/m3 | F50: 46.63333333 | G50: 4.366666667 | H50: 33.6 | I50: 4.3 | J50: 20.33333333 | K50: 1.566666667
A51: Flu Gas Flow rate | C51: Ave value | D51: Nm3/Hour | F51: 37421 | G51: 33135 | H51: 36985 | I51: 33631 | J51: 99952 | K51: 95752
A52: Comments :
A53: All periodic monitoring results were within their respective permitted ELVs. SEPA organised periodic monitoring across all lines, which was conducted between the 3rd and 14th of February. Line 1 experienced an exceedance of NH3 during this testing, but after investigation, it was determined that the elevated emissions were due to a fault in the sampling equipment. Additional Line 1 quarterly PCDD/F testing was conducted on the 24th of February and the 30th of September results were all within the permitted ELVs

Sheet Air (CEMS)
A1: =+'Cover Page'!$B$29 -> Annual Performance Report 2025 | I1: =+'Cover Page'!$B$33 -> MVV Environment Baldovie Ltd
A3: Emissions to Air (continuously monitored)
N4: Notes:
A5: Summary of monitoring undertaken, standards used and compliance | N5: Template may require adjustment for any bespoke monitoring requirements of permit
A6: As required by Permit condition 6.2.2, 6.2.5 Continuous Emissions Monitoring System in compliance with the requirements of BS EN 14181 | N6: Please check that all default ELV values match those for your plant and edit if necessary!
N7: Report to 1 decimal place
A11: Results of emissions to air that are continuously monitored (maximum and average values for each line) - oxygen reference 11%
A12: Substance | B12: Reference Period | C12: Emission Limit Value | D12: A1 | F12: A2 | H12: A3 | J12: A4 | L12: A5
D13: Max. | E13: Avg. | F13: Max. | G13: Avg. | H13: Max. | I13: Avg. | J13: Max. | K13: Avg. | L13: Max. | M13: Avg.
A14: Oxides of nitrogen | B14: Daily mean | C14: 180 mg/m3 | D14: =NOx!$O$19 -> 191.7 | E14: =NOx!$N$19 -> 170.8083333 | F14: =OFFSET(NOx!$O$19,15,) -> 179.6 | G14: =OFFSET(NOx!$N$19,15,) -> 170.75 | H14: =OFFSET(NOx!$O$19,30,) -> 172.7 | I14: =OFFSET(NOx!$N$19,30,) -> 166.55
B15: ½ hourly mean | C15: 400 mg/m3 | D15: =NOx!$M$19 -> 292.8 | E15: =NOx!$L$19 -> 170.925 | F15: =OFFSET(NOx!$M$19,15,) -> 302.5 | G15: =OFFSET(NOx!$L$19,15,) -> 171.1416667 | H15: =OFFSET(NOx!$M$19,30,) -> 222 | I15: =OFFSET(NOx!$L$19,30,) -> 166.6083333
A16: Particulates | B16: Daily mean | C16: 5 mg/m3 | D16: =Particulates!$O$19 -> 1 | E16: =Particulates!$N$19 -> 0.2333333333 | F16: =OFFSET(Particulates!$O$19,15,) -> 5.2 | G16: =OFFSET(Particulates!$N$19,15,) -> 1.075 | H16: =OFFSET(Particulates!$O$19,30,) -> 3.3 | I16: =OFFSET(Particulates!$N$19,30,) -> 0.3666666667
B17: ½ hourly mean | C17: 30 mg/m3 | D17: =Particulates!$M$19 -> 6.8 | E17: =Particulates!$L$19 -> 0.2583333333 | F17: =OFFSET(Particulates!$M$19,15,) -> 23.9 | G17: =OFFSET(Particulates!$L$19,15,) -> 1.083333333 | H17: =OFFSET(Particulates!$M$19,30,) -> 8.1 | I17: =OFFSET(Particulates!$L$19,30,) -> 0.4083333333
A18: Total Organic Carbon | B18: Daily mean | C18: 10 mg/m3 | D18: =TOC!$O$19 -> 25.3 | E18: =TOC!$N$19 -> 1.341666667 | F18: =OFFSET(TOC!$O$19,15,) -> 7.8 | G18: =OFFSET(TOC!$N$19,15,) -> 0.6916666667 | H18: =OFFSET(TOC!$O$19,30,) -> 3.6 | I18: =OFFSET(TOC!$N$19,30,) -> 0.3416666667
B19: ½ hourly mean | C19: 20 mg/m3 | D19: =TOC!$M$19 -> 94.1 | E19: =TOC!$L$19 -> 1.208333333 | F19: =OFFSET(TOC!$M$19,15,) -> 38.3 | G19: =OFFSET(TOC!$L$19,15,) -> 0.7083333333 | H19: =OFFSET(TOC!$M$19,30,) -> 417.5 | I19: =OFFSET(TOC!$L$19,30,) -> 0.4416666667
A20: Hydrogen chloride | B20: Daily mean | C20: 8 mg/m3 | D20: =HCl!$O$19 -> 6.9 | E20: =HCl!$N$19 -> 2.525 | F20: =OFFSET(HCl!$O$19,15,) -> 6.9 | G20: =OFFSET(HCl!$N$19,15,) -> 3.408333333 | H20: =OFFSET(HCl!$O$19,30,) -> 6.4 | I20: =OFFSET(HCl!$N$19,30,) -> 3.433333333
B21: ½ hourly mean | C21: 60 mg/m3 | D21: =HCl!$M$19 -> 42.1 | E21: =HCl!$L$19 -> 2.666666667 | F21: =OFFSET(HCl!$M$19,15,) -> 18.5 | G21: =OFFSET(HCl!$L$19,15,) -> 3.508333333 | H21: =OFFSET(HCl!$M$19,30,) -> 30 | I21: =OFFSET(HCl!$L$19,30,) -> 3.5
A22: Sulphur dioxide | B22: Daily mean | C22: 40 mg/m3 | D22: ='SO2'!$O$19 -> 19.6 | E22: ='SO2'!$N$19 -> 12.43333333 | F22: =OFFSET('SO2'!$O$19,15,) -> 26.5 | G22: =OFFSET('SO2'!$N$19,15,) -> 7.775 | H22: =OFFSET('SO2'!$O$19,30,) -> 10.4 | I22: =OFFSET('SO2'!$N$19,30,) -> 1.8
B23: ½ hourly mean | C23: 200 mg/m3 | D23: ='SO2'!$M$19 -> 100 | E23: ='SO2'!$L$19 -> 12.59166667 | F23: =OFFSET('SO2'!$M$19,15,) -> 44.6 | G23: =OFFSET('SO2'!$L$19,15,) -> 7.866666667 | H23: =OFFSET('SO2'!$M$19,30,) -> 83.3 | I23: =OFFSET('SO2'!$L$19,30,) -> 1.816666667
A24: Carbon monoxide | B24: Daily mean | C24: 50 mg/m3 | D24: ='CO 95% 10 min'!$Q$19 -> 32.9 | E24: ='CO 95% 10 min'!$P$19 -> 17.9 | F24: =OFFSET('CO 95% 10 min'!$Q$19,15,) -> 41.7 | G24: =OFFSET('CO 95% 10 min'!$P$19,15,) -> 23.7 | H24: =OFFSET('CO 95% 10 min'!$Q$19,30,) -> 18.7 | I24: =OFFSET('CO 95% 10 min'!$P$19,30,) -> 7.3
B25: 95%ile 10-min avg * | C25: 150 mg/m3 * | D25: ='CO 95% 10 min'!$O$19 -> 338.6 | E25: ='CO 95% 10 min'!$M$19 -> 72.9 | F25: =OFFSET('CO 95% 10 min'!$O$19,15,) -> 324.1 | G25: =OFFSET('CO 95% 10 min'!$M$19,15,) -> 87 | H25: =OFFSET('CO 95% 10 min'!$O$19,30,) -> 1297.7 | I25: =OFFSET('CO 95% 10 min'!$M$19,30,) -> 39.6
A26: Ammonia | B26: Daily mean | C26: 15 mg/m3 | D26: ='NH3'!$O$19 -> 7.9 | E26: ='NH3'!$N$19 -> 0.525 | F26: =OFFSET('NH3'!$O$19,15,) -> 7.2 | G26: =OFFSET('NH3'!$N$19,15,) -> 0.7333333333 | H26: =OFFSET('NH3'!$O$19,30,) -> 2 | I26: =OFFSET('NH3'!$N$19,30,) -> 0.03333333333
B27: ½ hourly mean | C27: ELV/ None set* (mg/m3)* | D27: ='NH3'!$M$19 -> 24.6 | E27: ='NH3'!$L$19 -> 0.45 | F27: =OFFSET('NH3'!$M$19,15,) -> 16.7 | G27: =OFFSET('NH3'!$L$19,15,) -> 0.7166666667 | H27: =OFFSET('NH3'!$M$19,30,) -> 11.6 | I27: =OFFSET('NH3'!$L$19,30,) -> 0.05833333333
A28: Nitrous oxide | B28: Daily mean | C28: None set (mg/m3 ) | D28: 10.6 | E28: 2.091666667 | F28: 37.5 | G28: 1.841666667 | H28: 17.5 | I28: 3.808333333
B29: ½ hourly mean | C29: None set (mg/m3 ) | D29: 46.1 | E29: 1.9 | F29: 110.1 | G29: 1.675 | H29: 717.2 | I29: 3.825
A30: Flow | B30: Daily mean | C30: None set (Nm3/Hour) | D30: 43831.9 | E30: 34780.93333 | F30: 34755 | G30: 29082.95 | H30: 108551.3 | I30: 97494.025
B31: ½ hourly mean | C31: None set (Nm3/Hour) | D31: 45170 | E31: 34801.44167 | F31: 60476 | G31: 29073.98333 | H31: 127301.8 | I31: 97508.975
A32: * = delete as appropriate, depending on whether your plant has half-hourly or 10-min CO ELVs
A33: Comments :

Sheet HCl
A1: =+'Cover Page'!$B$29 -> Annual Performance Report 2025 | E1: =+'Cover Page'!$B$33 -> MVV Environment Baldovie Ltd
A3: Monitoring of Hydrogen Chloride emissions | D3: Whole Installation | G3: See Notes in Cell Q3 | J3: =+A3 -> Monitoring of Hydrogen Chloride emissions | N3: Per Combustion Line | Q3: Notes:
Q4: User to add logic to complete Whole installation, Table A5:G18. From the data in Per Combustion Line, Table J6:O79, subject to No. of lines installed
A5: =+'Cover Page'!C39 -> 2025 | B5: 1/2 Hourly Reference Periods | E5: Daily Reference Periods
A6: mg/Nm3 | B6: 1/2 hourly HCl ELV | C6: Monthly mean of half-hourly averages | D6: Highest half- hourly average | E6: Daily HCl ELV | F6: Monthly mean of daily averages | G6: Highest daily average | J6: =+A5 -> 2025 | K6: mg/Nm3 | L6: Monthly mean of half-hourly averages | M6: Highest half- hourly average | N6: Monthly mean of daily averages | O6: Highest daily average
A7: Jan | B7: 60 | C7: =AVERAGE(L7,L22,M37) -> 5.3 | D7: =MAX(M7,M22,N37) -> 14.2 | E7: 8 | F7: =AVERAGE(N7,N22,N37) -> 3.7 | G7: =MAX(O7,O22,O37) -> 6.4 | J7: A1 | K7: Jan | L7: 3.8 | M7: 14.2 | N7: 3.5 | O7: 5.9
A8: Feb | B8: 60 | C8: =AVERAGE(L8,L23,M38) -> 8.566666667 | D8: =MAX(M8,M23,N38) -> 8.9 | E8: 8 | F8: =AVERAGE(N8,N23,N38) -> 2.666666667 | G8: =MAX(O8,O23,O38) -> 5.9 | K8: Feb | L8: 1.4 | M8: 8.9 | N8: 1.3 | O8: 1.7
A9: Mar | B9: 60 | C9: 5.033333333 | D9: 10.8 | E9: 8 | F9: 2.9 | G9: 5.6 | K9: Mar | L9: 2.1 | M9: 10.8 | N9: 2.2 | O9: 5.3 | Q9: Whole Installation table A5:G18:
A10: Apr | B10: 60 | C10: 4.7 | D10: 12.8 | E10: 8 | F10: 2.566666667 | G10: 6.4 | K10: Apr | L10: 1.9 | M10: 12.8 | N10: 1.8 | O10: 3.3 | Q10: Mean: for 1/2 hourly and daily periods calculate mean of values across all operational combustion lines for the month
A11: May | B11: 60 | C11: 4.333333333 | D11: 10.3 | E11: 8 | F11: 3.3 | G11: 6.4 | K11: May | L11: 1.5 | M11: 7.8 | N11: 1.5 | O11: 5
A12: Jun | B12: 60 | C12: 4.766666667 | D12: 25.6 | E12: 8 | F12: 3.3 | G12: 5.7 | K12: Jun | L12: 3.1 | M12: 25.6 | N12: 2.9 | O12: 5.4
A13: Jul | B13: 60 | C13: 6.033333333 | D13: 37.7 | E13: 8 | F13: 3.3 | G13: 6.9 | K13: Jul | L13: 3.4 | M13: 37.7 | N13: 3.1 | O13: 5.3 | Q13: Maximum: for 1/2 hourly and daily periods use the highest value across all operational combustion lines for the month
A14: Aug | B14: 60 | C14: 9.1 | D14: 42.1 | E14: 8 | F14: 3.533333333 | G14: 6.9 | K14: Aug | L14: 3.2 | M14: 42.1 | N14: 3.1 | O14: 6.9
A15: Sep | B15: 60 | C15: 9 | D15: 21.2 | E15: 8 | F15: 3.466666667 | G15: 6.7 | K15: Sep | L15: 3.1 | M15: 21.2 | N15: 3 | O15: 6.7
A16: Oct | B16: 60 | C16: 11.93333333 | D16: 14.2 | E16: 8 | F16: 3 | G16: 6.5 | K16: Oct | L16: 3.4 | M16: 14.2 | N16: 3 | O16: 6.5
A17: Nov | B17: 60 | C17: 9.233333333 | D17: 32.8 | E17: 8 | F17: 2.633333333 | G17: 6.2 | K17: Nov | L17: 2.7 | M17: 32.8 | N17: 2.5 | O17: 5.4
A18: Dec | B18: 60 | C18: 5.7 | D18: 8.6 | E18: 8 | F18: 3.1 | G18: 6.5 | K18: Dec | L18: 2.4 | M18: 8.6 | N18: 2.4 | O18: 5.5 | Q18: *Value of Daily ELV:
K19: Annual | L19: =AVERAGE(L7:L18) -> 2.666666667 | M19: =MAX(M7:M18) -> 42.1 | N19: =AVERAGE(N7:N18) -> 2.525 | O19: =MAX(O7:O18) -> 6.9 | Q19: ELV should be corrected as necessary to match ELV in Table 6.2
J21: =+A5 -> 2025 | K21: mg/Nm3 | L21: Monthly mean of half-hourly averages | M21: Highest half- hourly average | N21: Monthly mean of daily averages | O21: Highest daily average
J22: A2 | K22: Jan | L22: 4 | M22: 8 | N22: 3.9 | O22: 6.4
K23: Feb | L23: 2.4 | M23: 7.2 | N23: 2.3 | O23: 5
K24: Mar | L24: 2.3 | M24: 7.6 | N24: 2 | O24: 5.2
K25: Apr | L25: 1.5 | M25: 8.1 | N25: 1.5 | O25: 2.5
K26: May | L26: 3.7 | M26: 10.3 | N26: 3.5 | O26: 6.4
K27: Jun | L27: 3.7 | M27: 14.1 | N27: 3.5 | O27: 5.7
K28: Jul | L28: 4.3 | M28: 9.3 | N28: 4.3 | O28: 6.9
K29: Aug | L29: 5.5 | M29: 11.1 | N29: 5.3 | O29: 6.5
K30: Sep | L30: 4.1 | M30: 18.5 | N30: 4.3 | O30: 6.6
K31: Oct | L31: 2.4 | M31: 7.4 | N31: 2.5 | O31: 6.5
K32: Nov | L32: 2.9 | M32: 15.7 | N32: 2.9 | O32: 6.2
K33: Dec | L33: 5.3 | M33: 8.5 | N33: 4.9 | O33: 6.5
K34: Annual | L34: =AVERAGE(L22:L33) -> 3.508333333 | M34: =MAX(M22:M33) -> 18.5 | N34: =AVERAGE(N22:N33) -> 3.408333333 | O34: =MAX(O22:O33) -> 6.9
J36: =+A5 -> 2025 | K36: mg/Nm3 | L36: Monthly mean of half-hourly averages | M36: Highest half- hourly average | N36: Monthly mean of daily averages | O36: Highest daily average
J37: A3 | K37: Jan | L37: 3.7 | M37: 8.1 | N37: 3.7 | O37: 5
K38: Feb | L38: 4.5 | M38: 21.9 | N38: 4.4 | O38: 5.9
K39: Mar | L39: 4.6 | M39: 10.7 | N39: 4.5 | O39: 5.6
K40: Apr | L40: 4.6 | M40: 10.7 | N40: 4.4 | O40: 6.4
K41: May | L41: 5 | M41: 7.8 | N41: 4.9 | O41: 5.8
K42: Jun | L42: 3.6 | M42: 7.5 | N42: 3.5 | O42: 5.2
K43: Jul | L43: 2.5 | M43: 10.4 | N43: 2.5 | O43: 4.6
K44: Aug | L44: 2.3 | M44: 18.6 | N44: 2.2 | O44: 4.3
K45: Sep | L45: 3.1 | M45: 19.8 | N45: 3.1 | O45: 5.3
K46: Oct | L46: 3.5 | M46: 30 | N46: 3.5 | O46: 5.4
K47: Nov | L47: 2.5 | M47: 22.1 | N47: 2.5 | O47: 4.8
A48: Comments : | K48: Dec | L48: 2.1 | M48: 9.4 | N48: 2 | O48: 3.6
K49: Annual | L49: =AVERAGE(L37:L48) -> 3.5 | M49: =MAX(M37:M48) -> 30 | N49: =AVERAGE(N37:N48) -> 3.433333333 | O49: =MAX(O37:O48) -> 6.4
J51: =+A5 -> 2025 | K51: mg/Nm3 | L51: Monthly mean of half-hourly averages | M51: Highest half- hourly average | N51: Monthly mean of daily averages | O51: Highest daily average
J52: A4 | K52: Jan
K53: Feb
K54: Mar
K55: Apr
K56: May
K57: Jun
K58: Jul
K59: Aug
K60: Sep
K61: Oct
K62: Nov
K63: Dec
K64: Annual | L64: =AVERAGE(L52:L63) ->  | M64: =MAX(M52:M63) -> 0 | N64: =AVERAGE(N52:N63) ->  | O64: =MAX(O52:O63) -> 0
J66: =+A5 -> 2025 | K66: mg/Nm3 | L66: Monthly mean of half-hourly averages | M66: Highest half- hourly average | N66: Monthly mean of daily averages | O66: Highest daily average
J67: A5 | K67: Jan
K68: Feb
K69: Mar
K70: Apr
K71: May
K72: Jun
K73: Jul
K74: Aug
K75: Sep
K76: Oct
K77: Nov
K78: Dec
K79: Annual | L79: =AVERAGE(L67:L78) ->  | M79: =MAX(M67:M78) -> 0 | N79: =AVERAGE(N67:N78) ->  | O79: =MAX(O67:O78) -> 0

Sheet SO2
A1: =+'Cover Page'!$B$29 -> Annual Performance Report 2025 | E1: =+'Cover Page'!$B$33 -> MVV Environment Baldovie Ltd
A3: Monitoring of Sulphur dioxide emissions | D3: Whole Installation | G3: See Notes in Cell Q3 | J3: =+A3 -> Monitoring of Sulphur dioxide emissions | N3: Per Combustion Line | Q3: Notes:
Q4: User to add logic to complete Whole installation, Table A5:G18. From the data in Per Combustion Line, Table J6:O79, subject to No. of lines installed
A5: =+'Cover Page'!C39 -> 2025 | B5: 1/2 Hourly Reference Periods | E5: Daily Reference Periods
A6: mg/Nm3 | B6: 1/2 hourly SO2 ELV | C6: Monthly mean of half-hourly averages | D6: Highest half- hourly average | E6: Daily SO2 ELV | F6: Monthly mean of daily averages | G6: Highest daily average | J6: =+A5 -> 2025 | K6: mg/Nm3 | L6: Monthly mean of half-hourly averages | M6: Highest half- hourly average | N6: Monthly mean of daily averages | O6: Highest daily average
A7: Jan | B7: 200 | C7: =AVERAGE(L7,L22,M37) -> 13.5 | D7: =MAX(M7,M22,M37) -> 40.5 | E7: 20 | F7: =AVERAGE(N7,N22,N37) -> 6.466666667 | G7: =MAX(O7,O22,O37) -> 16.3 | J7: A1 | K7: Jan | L7: 13.5 | M7: 40.5 | N7: 13.3 | O7: 16.3
A8: Feb | B8: 200 | C8: =AVERAGE(L8,L23,M38) -> 23.83333333 | D8: =MAX(M8,M23,M38) -> 52.5 | E8: 20 | F8: =AVERAGE(N8,N23,N38) -> 6.833333333 | G8: =MAX(O8,O23,O38) -> 15.9 | K8: Feb | L8: 13.2 | M8: 32.5 | N8: 13.2 | O8: 15.9
A9: Mar | B9: 200 | C9: 17.66666667 | D9: =MAX(M9,M24,M39) -> 34.2 | E9: 20 | F9: 6.466666667 | G9: 16.2 | K9: Mar | L9: 12.7 | M9: 29.6 | N9: 12.5 | O9: 16.2 | Q9: Whole Installation table A5:G18:
A10: Apr | B10: 200 | C10: 12.6 | D10: 32.3 | E10: 20 | F10: 5.433333333 | G10: 16.8 | K10: Apr | L10: 12.2 | M10: 29.1 | N10: 12.1 | O10: 16.8 | Q10: Mean: for 1/2 hourly and daily periods calculate mean of values across all operational combustion lines for the month
A11: May | B11: 200 | C11: 11.1 | D11: 30.2 | E11: 20 | F11: 5.933333333 | G11: =MAX(O11,O26,O41) -> 16.7 | K11: May | L11: 11.8 | M11: 29.2 | N11: 11.6 | O11: 16.7
A12: Jun | B12: 200 | C12: 31.03333333 | D12: 73.1 | E12: 20 | F12: 7.2 | G12: 16.1 | K12: Jun | L12: 12.5 | M12: 33.9 | N12: 12.2 | O12: 16.1
A13: Jul | B13: 200 | C13: 35 | D13: 83.3 | E13: 20 | F13: 8.6 | G13: 19.6 | K13: Jul | L13: 12.8 | M13: 39.6 | N13: 13 | O13: 19.6 | Q13: Maximum: for 1/2 hourly and daily periods use the highest value across all operational combustion lines for the month
A14: Aug | B14: 200 | C14: 32.4 | D14: 73.8 | E14: 20 | F14: 8.6 | G14: 16.4 | K14: Aug | L14: 13 | M14: 36.4 | N14: 13.1 | O14: 16.4
A15: Sep | B15: 200 | C15: 32.8 | D15: 74.8 | E15: 20 | F15: 9 | G15: 26.5 | K15: Sep | L15: 13.6 | M15: 43.5 | N15: 13.3 | O15: 16.1
A16: Oct | B16: 200 | C16: 33.23333333 | D16: 74.5 | E16: 20 | F16: 9.033333333 | G16: 17.6 | K16: Oct | L16: 13.7 | M16: 49.6 | N16: 12.8 | O16: 16.9
A17: Nov | B17: 200 | C17: 32.06666667 | D17: 100 | E17: 20 | F17: 7.433333333 | G17: 18 | K17: Nov | L17: 11 | M17: 100 | N17: 11.1 | O17: 18
A18: Dec | B18: 200 | C18: 17.83333333 | D18: 32.6 | E18: 20 | F18: 7.033333333 | G18: 14.7 | K18: Dec | L18: 11.1 | M18: 26.8 | N18: 11 | O18: 14.7 | Q18: *Value of Daily ELV:
K19: Annual | L19: =AVERAGE(L7:L18) -> 12.59166667 | M19: =MAX(M7:M18) -> 100 | N19: =AVERAGE(N7:N18) -> 12.43333333 | O19: =MAX(O7:O18) -> 19.6 | Q19: ELV should be corrected as necessary to match ELV in Table 6.2
J21: =+A5 -> 2025 | K21: mg/Nm3 | L21: Monthly mean of half-hourly averages | M21: Highest half- hourly average | N21: Monthly mean of daily averages | O21: Highest daily average
J22: A2 | K22: Jan | L22: 5.6 | M22: 29.6 | N22: 5.3 | O22: 10.3
K23: Feb | L23: 5.8 | M23: 34.6 | N23: 6.1 | O23: 15.8
K24: Mar | L24: 6.1 | M24: 31.4 | N24: 5 | O24: 11.4
K25: Apr | L25: 3.4 | M25: 32.3 | N25: 3.4 | O25: 11.8
K26: May | L26: 5.7 | M26: 30.2 | N26: 5.4 | O26: 11.3
K27: Jun | L27: 7.5 | M27: 34.2 | N27: 7.3 | O27: 12.5
K28: Jul | L28: 8.9 | M28: 27.6 | N28: 9.1 | O28: 19.2
K29: Aug | L29: 10.4 | M29: 28.9 | N29: 10.3 | O29: 15.2
K30: Sep | L30: 10 | M30: 42.9 | N30: 10.8 | O30: 26.5
K31: Oct | L31: 11.5 | M31: 36.9 | N31: 11.7 | O31: 17.6
K32: Nov | L32: 9.7 | M32: 44.6 | N32: 9.8 | O32: 17.1
K33: Dec | L33: 9.8 | M33: 30.2 | N33: 9.1 | O33: 12.1
K34: Annual | L34: =AVERAGE(L22:L33) -> 7.866666667 | M34: =MAX(M22:M33) -> 44.6 | N34: =AVERAGE(N22:N33) -> 7.775 | O34: =MAX(O22:O33) -> 26.5
J36: =+A5 -> 2025 | K36: mg/Nm3 | L36: Monthly mean of half-hourly averages | M36: Highest half- hourly average | N36: Monthly mean of daily averages | O36: Highest daily average
J37: A3 | K37: Jan | L37: 0.8 | M37: 21.4 | N37: 0.8 | O37: 3.3
K38: Feb | L38: 1.2 | M38: 52.5 | N38: 1.2 | O38: 3.8
K39: Mar | L39: 1.9 | M39: 34.2 | N39: 1.9 | O39: 6.5
K40: Apr | L40: 0.8 | M40: 22.2 | N40: 0.8 | O40: 2.8
K41: May | L41: 0.8 | M41: 15.8 | N41: 0.8 | O41: 1.8
K42: Jun | L42: 2.1 | M42: 73.1 | N42: 2.1 | O42: 9.7
K43: Jul | L43: 3.8 | M43: 83.3 | N43: 3.7 | O43: 8.1
K44: Aug | L44: 2.4 | M44: 73.8 | N44: 2.4 | O44: 6.8
K45: Sep | L45: 2.9 | M45: 74.8 | N45: 2.9 | O45: 10.4
K46: Oct | L46: 2.6 | M46: 74.5 | N46: 2.6 | O46: 7.4
K47: Nov | L47: 1.4 | M47: 75.5 | N47: 1.4 | O47: 4
A48: Comments : | K48: Dec | L48: 1.1 | M48: 32.6 | N48: 1 | O48: 2.8
A49: Line 2 had 1 daily average exceedance in 2025. There was insufficient effective operating time for the daily average ELV to be applicable. Line 3 had 2 daily average exceedances in 2025. There was insufficient effective operating time for the daily average ELV to be applicable. | K49: Annual | L49: =AVERAGE(L37:L48) -> 1.816666667 | M49: =MAX(M37:M48) -> 83.3 | N49: =AVERAGE(N37:N48) -> 1.8 | O49: =MAX(O37:O48) -> 10.4
J51: =+A5 -> 2025 | K51: mg/Nm3 | L51: Monthly mean of half-hourly averages | M51: Highest half- hourly average | N51: Monthly mean of daily averages | O51: Highest daily average
J52: A4 | K52: Jan
K53: Feb
K54: Mar
K55: Apr
K56: May
K57: Jun
K58: Jul
K59: Aug
K60: Sep
K61: Oct
K62: Nov
K63: Dec
K64: Annual | L64: =AVERAGE(L52:L63) ->  | M64: =MAX(M52:M63) -> 0 | N64: =AVERAGE(N52:N63) ->  | O64: =MAX(O52:O63) -> 0
J66: =+A5 -> 2025 | K66: mg/Nm3 | L66: Monthly mean of half-hourly averages | M66: Highest half- hourly average | N66: Monthly mean of daily averages | O66: Highest daily average
J67: A5 | K67: Jan
K68: Feb
K69: Mar
K70: Apr
K71: May
K72: Jun
K73: Jul
K74: Aug
K75: Sep
K76: Oct
K77: Nov
K78: Dec
K79: Annual | L79: =AVERAGE(L67:L78) ->  | M79: =MAX(M67:M78) -> 0 | N79: =AVERAGE(N67:N78) ->  | O79: =MAX(O67:O78) -> 0

Sheet NOx
A1: =+'Cover Page'!$B$29 -> Annual Performance Report 2025 | E1: =+'Cover Page'!$B$33 -> MVV Environment Baldovie Ltd
A3: Monitoring of Oxides of Nitrogen emissions | D3: Whole Installation | G3: See Notes in Cell Q3 | J3: =+A3 -> Monitoring of Oxides of Nitrogen emissions | N3: Per Combustion Line | Q3: Notes:
Q4: User to add logic to complete Whole installation, Table A5:G18. From the data in Per Combustion Line, Table J6:O79, subject to No. of lines installed
A5: =+'Cover Page'!C39 -> 2025 | B5: 1/2 Hourly Reference Periods | E5: Daily Reference Periods
A6: mg/Nm3 | B6: 1/2 hourly NOx ELV | C6: Monthly mean of half-hourly averages | D6: Highest half- hourly average | E6: Daily NOx ELV | F6: Monthly mean of daily averages | G6: Highest daily average | J6: =+A5 -> 2025 | K6: mg/Nm3 | L6: Monthly mean of half-hourly averages | M6: Highest half- hourly average | N6: Monthly mean of daily averages | O6: Highest daily average
A7: Jan | B7: 400 | C7: =AVERAGE(L7,L22,M37) -> 180.3333333 | D7: =MAX(M7,M22,M37) -> 270.5 | E7: 180 | F7: =AVERAGE(N7,N22,N37) -> 169.7333333 | G7: =MAX(O7,O22,O37) -> 182.1 | J7: A1 | K7: Jan | L7: 172.2 | M7: 270.5 | N7: 171.6 | O7: 182.1
A8: Feb | B8: 400 | C8: =AVERAGE(L8,L23,M38) -> 182.4666667 | D8: =MAX(M8,M23,M38) -> 234.2 | E8: 180 | F8: =AVERAGE(N8,N23,N38) -> 169.8333333 | G8: =MAX(O8,O23,O38) -> 177.6 | K8: Feb | L8: 172.3 | M8: 234.2 | N8: 172.4 | O8: 177.6
A9: Mar | B9: 400 | C9: 184.2333333 | D9: =MAX(M9,M24,M39) -> 258.8 | E9: 180 | F9: 169.5666667 | G9: 172.8 | K9: Mar | L9: 171.8 | M9: 258.8 | N9: 171.5 | O9: 172.8 | Q9: Whole Installation table A5:G18:
A10: Apr | B10: 400 | C10: 183.3 | D10: 262.5 | E10: 180 | F10: 168.8333333 | G10: 179.2 | K10: Apr | L10: 172.4 | M10: 252 | N10: 172.4 | O10: 179.2 | Q10: Mean: for 1/2 hourly and daily periods calculate mean of values across all operational combustion lines for the month
A11: May | B11: 400 | C11: 180.6 | D11: 230.2 | E11: 180 | F11: 168.8666667 | G11: =MAX(O11,O26,O41) -> 174.4 | K11: May | L11: 171 | M11: 230.2 | N11: 170.8 | O11: 174.4
A12: Jun | B12: 400 | C12: 178 | D12: 280.2 | E12: 180 | F12: 168.3666667 | G12: 179.6 | K12: Jun | L12: 172.7 | M12: 231.4 | N12: 172.5 | O12: 177.2
A13: Jul | B13: 400 | C13: 185.2 | D13: 224 | E13: 180 | F13: 168.3 | G13: 173.1 | K13: Jul | L13: 169.7 | M13: 208.5 | N13: 169.4 | O13: 172.3 | Q13: Maximum: for 1/2 hourly and daily periods use the highest value across all operational combustion lines for the month
A14: Aug | B14: 400 | C14: 188.7 | D14: 222 | E14: 180 | F14: 170.7 | G14: 173.5 | K14: Aug | L14: 172.1 | M14: 186.7 | N14: 171.6 | O14: 173.5
A15: Sep | B15: 400 | C15: 179.4333333 | D15: 263.7 | E15: 180 | F15: 170.4 | G15: 174.9 | K15: Sep | L15: 172 | M15: 220.4 | N15: 171.9 | O15: 173.7
A16: Oct | B16: 400 | C16: 181.5666667 | D16: 302.5 | E16: 180 | F16: 171.1 | G16: 191.7 | K16: Oct | L16: 171.3 | M16: 240 | N16: 172.3 | O16: 191.7
A17: Nov | B17: 400 | C17: 185.7666667 | D17: 256.9 | E17: 180 | F17: 169.2666667 | G17: 178.1 | K17: Nov | L17: 166.2 | M17: 208.5 | N17: 166 | O17: 168.8
A18: Dec | B18: 400 | C18: 176.2666667 | D18: 292.8 | E18: 180 | F18: 167.4666667 | G18: 172.1 | K18: Dec | L18: 167.4 | M18: 292.8 | N18: 167.3 | O18: 172 | Q18: *Value of Daily ELV:
K19: Annual | L19: =AVERAGE(L7:L18) -> 170.925 | M19: =MAX(M7:M18) -> 292.8 | N19: =AVERAGE(N7:N18) -> 170.8083333 | O19: =MAX(O7:O18) -> 191.7 | Q19: ELV should be corrected as necessary to match ELV in Table 6.2
J21: =+A5 -> 2025 | K21: mg/Nm3 | L21: Monthly mean of half-hourly averages | M21: Highest half- hourly average | N21: Monthly mean of daily averages | O21: Highest daily average
J22: A2 | K22: Jan | L22: 172 | M22: 194.7 | N22: 172.1 | O22: 175.4
K23: Feb | L23: 172 | M23: 213.6 | N23: 172 | O23: 173.6
K24: Mar | L24: 171 | M24: 189.3 | N24: 170.3 | O24: 172.2
K25: Apr | L25: 171.2 | M25: 262.5 | N25: 170.5 | O25: 172.8
K26: May | L26: 171.6 | M26: 203.3 | N26: 170.9 | O26: 173.6
K27: Jun | L27: 170.2 | M27: 280.2 | N27: 170.4 | O27: 179.6
K28: Jul | L28: 171.8 | M28: 224 | N28: 171.7 | O28: 173.1
K29: Aug | L29: 172 | M29: 211.4 | N29: 171.9 | O29: 173.4
K30: Sep | L30: 172.2 | M30: 263.7 | N30: 172.3 | O30: 174.9
K31: Oct | L31: 170.5 | M31: 302.5 | N31: 171.8 | O31: 177.8
K32: Nov | L32: 171 | M32: 256.9 | N32: 171 | O32: 178.1
K33: Dec | L33: 168.2 | M33: 206.5 | N33: 164.1 | O33: 170.6
K34: Annual | L34: =AVERAGE(L22:L33) -> 171.1416667 | M34: =MAX(M22:M33) -> 302.5 | N34: =AVERAGE(N22:N33) -> 170.75 | O34: =MAX(O22:O33) -> 179.6
J36: =+A5 -> 2025 | K36: mg/Nm3 | L36: Monthly mean of half-hourly averages | M36: Highest half- hourly average | N36: Monthly mean of daily averages | O36: Highest daily average
J37: A3 | K37: Jan | L37: 165.5 | M37: 196.8 | N37: 165.5 | O37: 172.3
K38: Feb | L38: 165.1 | M38: 203.1 | N38: 165.1 | O38: 168.9
K39: Mar | L39: 166.9 | M39: 209.9 | N39: 166.9 | O39: 171.9
K40: Apr | L40: 164.2 | M40: 206.3 | N40: 163.6 | O40: 170.2
K41: May | L41: 164.9 | M41: 199.2 | N41: 164.9 | O41: 169.5
K42: Jun | L42: 161.9 | M42: 191.1 | N42: 162.2 | O42: 168.3
K43: Jul | L43: 163.8 | M43: 214.1 | N43: 163.8 | O43: 170.7
K44: Aug | L44: 168.7 | M44: 222 | N44: 168.6 | O44: 171.7
K45: Sep | L45: 167 | M45: 194.1 | N45: 167 | O45: 172.4
K46: Oct | L46: 169.3 | M46: 202.9 | N46: 169.2 | O46: 172.7
K47: Nov | L47: 170.9 | M47: 220.1 | N47: 170.8 | O47: 172.4
A48: Comments : | K48: Dec | L48: 171.1 | M48: 193.2 | N48: 171 | O48: 172.1
A49: Line 1 had 2 daily average exceedances in 2025. There was insufficient effective operating time for the daily average ELV to be applicable. | K49: Annual | L49: =AVERAGE(L37:L48) -> 166.6083333 | M49: =MAX(M37:M48) -> 222 | N49: =AVERAGE(N37:N48) -> 166.55 | O49: =MAX(O37:O48) -> 172.7
J51: =+A5 -> 2025 | K51: mg/Nm3 | L51: Monthly mean of half-hourly averages | M51: Highest half- hourly average | N51: Monthly mean of daily averages | O51: Highest daily average
J52: A4 | K52: Jan
K53: Feb
K54: Mar
K55: Apr
K56: May
K57: Jun
K58: Jul
K59: Aug
K60: Sep
K61: Oct
K62: Nov
K63: Dec
K64: Annual | L64: =AVERAGE(L52:L63) ->  | M64: =MAX(M52:M63) -> 0 | N64: =AVERAGE(N52:N63) ->  | O64: =MAX(O52:O63) -> 0
J66: =+A5 -> 2025 | K66: mg/Nm3 | L66: Monthly mean of half-hourly averages | M66: Highest half- hourly average | N66: Monthly mean of daily averages | O66: Highest daily average
J67: A5 | K67: Jan
K68: Feb
K69: Mar
K70: Apr
K71: May
K72: Jun
K73: Jul
K74: Aug
K75: Sep
K76: Oct
K77: Nov
K78: Dec
K79: Annual | L79: =AVERAGE(L67:L78) ->  | M79: =MAX(M67:M78) -> 0 | N79: =AVERAGE(N67:N78) ->  | O79: =MAX(O67:O78) -> 0

Sheet TOC
A1: =+'Cover Page'!$B$29 -> Annual Performance Report 2025 | E1: =+'Cover Page'!$B$33 -> MVV Environment Baldovie Ltd
A3: Monitoring of Total organic carbon emissions | D3: Whole Installation | G3: See Notes in Cell Q3 | J3: =+A3 -> Monitoring of Total organic carbon emissions | N3: Per Combustion Line | Q3: Notes:
Q4: User to add logic to complete Whole installation, Table A5:G18. From the data in Per Combustion Line, Table J6:O79, subject to No. of lines installed
A5: =+'Cover Page'!C39 -> 2025 | B5: 1/2 Hourly Reference Periods | E5: Daily Reference Periods
A6: mg/Nm3 | B6: 1/2 hourly TOC ELV | C6: Monthly mean of half-hourly averages | D6: Highest half- hourly average | E6: Daily TOC ELV | F6: Monthly mean of daily averages | G6: Highest daily average | J6: =+A5 -> 2025 | K6: mg/Nm3 | L6: Monthly mean of half-hourly averages | M6: Highest half- hourly average | N6: Monthly mean of daily averages | O6: Highest daily average
A7: Jan | B7: 20 | C7: =AVERAGE(L7,L22,M37) -> 57.23333333 | D7: =MAX(M7,M22,M37) -> 170.6 | E7: 10 | F7: =AVERAGE(N7,N22,N37) -> 0.5333333333 | G7: =MAX(O7,O22,O37) -> 3.6 | J7: A1 | K7: Jan | L7: 0.3 | M7: 14.5 | N7: 0.3 | O7: 0.9
A8: Feb | B8: 20 | C8: =AVERAGE(L8,L23,M38) -> 5.5 | D8: =MAX(M8,M23,M38) -> 27.6 | E8: 10 | F8: =AVERAGE(N8,N23,N38) -> 0.4333333333 | G8: =MAX(O8,O23,O38) -> 2.1 | K8: Feb | L8: 0.6 | M8: 27.6 | N8: 0.6 | O8: 2.1
A9: Mar | B9: 20 | C9: 1.466666667 | D9: =MAX(M9,M24,M39) -> 94.1 | E9: 10 | F9: 0.5333333333 | G9: =MAX(O9,O24,O39) -> 3.5 | K9: Mar | L9: 0.7 | M9: 94.1 | N9: 0.8 | O9: 3.5 | Q9: Whole Installation table A5:G18:
A10: Apr | B10: 20 | C10: 3.133333333 | D10: 58.4 | E10: 10 | F10: 0.5333333333 | G10: 3.4 | K10: Apr | L10: 0.6 | M10: 58.4 | N10: 0.7 | O10: 3.4 | Q10: Mean: for 1/2 hourly and daily periods calculate mean of values across all operational combustion lines for the month
A11: May | B11: 20 | C11: 5.233333333 | D11: 23.9 | E11: 10 | F11: 0.5333333333 | G11: =MAX(O11,O26,O41) -> 2.6 | K11: May | L11: 0.8 | M11: 23.9 | N11: 0.7 | O11: 2.1
A12: Jun | B12: 20 | C12: 139.7333333 | D12: 417.5 | E12: 10 | F12: 0.7333333333 | G12: 2.6 | K12: Jun | L12: 1.1 | M12: 43.6 | N12: 1.2 | O12: 2.6
A13: Jul | B13: 20 | C13: 23.1 | D13: 66.8 | E13: 10 | F13: 1.333333333 | G13: 25.3 | K13: Jul | L13: 1.8 | M13: 40.6 | N13: 2.9 | O13: 25.3 | Q13: Maximum: for 1/2 hourly and daily periods use the highest value across all operational combustion lines for the month
A14: Aug | B14: 20 | C14: 4.7 | D14: 12 | E14: 10 | F14: 0.8 | G14: 3.3 | K14: Aug | L14: 1.4 | M14: 9.1 | N14: 1.5 | O14: 3.3
A15: Sep | B15: 20 | C15: 5.766666667 | D15: 60 | E15: 10 | F15: 1.366666667 | G15: 7.8 | K15: Sep | L15: 2.8 | M15: 60 | N15: 2.7 | O15: 5.4
A16: Oct | B16: 20 | C16: 10 | D16: 56.9 | E16: 10 | F16: 0.9666666667 | G16: 4.9 | K16: Oct | L16: 1.7 | M16: 56.9 | N16: 1.8 | O16: 4.9
A17: Nov | B17: 20 | C17: 2.066666667 | D17: 43.5 | E17: 10 | F17: 0.9666666667 | G17: 9.8 | K17: Nov | L17: 1.5 | M17: 43.5 | N17: 1.7 | O17: 9.8
A18: Dec | B18: 20 | C18: 2.666666667 | D18: 42.9 | E18: 10 | F18: 0.7666666667 | G18: 2.5 | K18: Dec | L18: 1.2 | M18: 42.9 | N18: 1.2 | O18: 2.5 | Q18: *Value of Daily ELV:
K19: Annual | L19: =AVERAGE(L7:L18) -> 1.208333333 | M19: =MAX(M7:M18) -> 94.1 | N19: =AVERAGE(N7:N18) -> 1.341666667 | O19: =MAX(O7:O18) -> 25.3 | Q19: ELV should be corrected as necessary to match ELV in Table 6.2
J21: =+A5 -> 2025 | K21: mg/Nm3 | L21: Monthly mean of half-hourly averages | M21: Highest half- hourly average | N21: Monthly mean of daily averages | O21: Highest daily average
J22: A2 | K22: Jan | L22: 0.8 | M22: 5.9 | N22: 0.8 | O22: 1.3
K23: Feb | L23: 0.5 | M23: 5.8 | N23: 0.4 | O23: 0.7
K24: Mar | L24: 0.7 | M24: 22.5 | N24: 0.6 | O24: 1.4
K25: Apr | L25: 0.6 | M25: 2.8 | N25: 0.5 | O25: 0.8
K26: May | L26: 0.5 | M26: 5.2 | N26: 0.6 | O26: 2.6
K27: Jun | L27: 0.6 | M27: 3.1 | N27: 0.6 | O27: 0.9
K28: Jul | L28: 0.7 | M28: 38.3 | N28: 0.7 | O28: 1.8
K29: Aug | L29: 0.7 | M29: 6.8 | N29: 0.6 | O29: 0.8
K30: Sep | L30: 0.8 | M30: 22.2 | N30: 1.1 | O30: 7.8
K31: Oct | L31: 0.8 | M31: 3.6 | N31: 0.7 | O31: 0.9
K32: Nov | L32: 0.9 | M32: 11.8 | N32: 0.9 | O32: 1.2
K33: Dec | L33: 0.9 | M33: 2.5 | N33: 0.8 | O33: 1.1
K34: Annual | L34: =AVERAGE(L22:L33) -> 0.7083333333 | M34: =MAX(M22:M33) -> 38.3 | N34: =AVERAGE(N22:N33) -> 0.6916666667 | O34: =MAX(O22:O33) -> 7.8
J36: =+A5 -> 2025 | K36: mg/Nm3 | L36: Monthly mean of half-hourly averages | M36: Highest half- hourly average | N36: Monthly mean of daily averages | O36: Highest daily average
J37: A3 | K37: Jan | L37: 0.5 | M37: 170.6 | N37: 0.5 | O37: 3.6
K38: Feb | L38: 0.3 | M38: 15.4 | N38: 0.3 | O38: 0.7
K39: Mar | L39: 0.2 | M39: 3 | N39: 0.2 | O39: 0.5
K40: Apr | L40: 0.4 | M40: 8.2 | N40: 0.4 | O40: 0.6
K41: May | L41: 0.4 | M41: 14.4 | N41: 0.3 | O41: 0.6
K42: Jun | L42: 1.4 | M42: 417.5 | N42: 0.4 | O42: 0.8
K43: Jul | L43: 0.5 | M43: 66.8 | N43: 0.4 | O43: 1.8
K44: Aug | L44: 0.3 | M44: 12 | N44: 0.3 | O44: 0.6
K45: Sep | L45: 0.3 | M45: 13.7 | N45: 0.3 | O45: 0.6
K46: Oct | L46: 0.4 | M46: 27.5 | N46: 0.4 | O46: 0.9
K47: Nov | L47: 0.3 | M47: 3.8 | N47: 0.3 | O47: 0.5
A48: Comments : | K48: Dec | L48: 0.3 | M48: 5.9 | N48: 0.3 | O48: 0.4
A49: Line 1 had 1 daily average exceedance in 2025. There was insufficient effective operating time for the daily average ELV to be applicable. Line 3 had 2 daily average exceedances in 2025. There was insufficient effective operating time for the daily average ELV to be applicable. | K49: Annual | L49: =AVERAGE(L37:L48) -> 0.4416666667 | M49: =MAX(M37:M48) -> 417.5 | N49: =AVERAGE(N37:N48) -> 0.3416666667 | O49: =MAX(O37:O48) -> 3.6
J51: =+A5 -> 2025 | K51: mg/Nm3 | L51: Monthly mean of half-hourly averages | M51: Highest half- hourly average | N51: Monthly mean of daily averages | O51: Highest daily average
J52: A4 | K52: Jan
K53: Feb
K54: Mar
K55: Apr
K56: May
K57: Jun
K58: Jul
K59: Aug
K60: Sep
K61: Oct
K62: Nov
K63: Dec
K64: Annual | L64: =AVERAGE(L52:L63) ->  | M64: =MAX(M52:M63) -> 0 | N64: =AVERAGE(N52:N63) ->  | O64: =MAX(O52:O63) -> 0
J66: =+A5 -> 2025 | K66: mg/Nm3 | L66: Monthly mean of half-hourly averages | M66: Highest half- hourly average | N66: Monthly mean of daily averages | O66: Highest daily average
J67: A5 | K67: Jan
K68: Feb
K69: Mar
K70: Apr
K71: May
K72: Jun
K73: Jul
K74: Aug
K75: Sep
K76: Oct
K77: Nov
K78: Dec
K79: Annual | L79: =AVERAGE(L67:L78) ->  | M79: =MAX(M67:M78) -> 0 | N79: =AVERAGE(N67:N78) ->  | O79: =MAX(O67:O78) -> 0

Sheet Particulates
A1: =+'Cover Page'!$B$29 -> Annual Performance Report 2025 | E1: =+'Cover Page'!$B$33 -> MVV Environment Baldovie Ltd
A3: Monitoring of Particulate matter emissions | D3: Whole Installation | G3: See Notes in Cell Q3 | J3: =+A3 -> Monitoring of Particulate matter emissions | N3: Per Combustion Line | Q3: Notes:
A5: =+'Cover Page'!C39 -> 2025 | B5: 1/2 Hourly Reference Periods | E5: Daily Reference Periods | Q5: User to add logic to complete Whole installation, Table A5:G18. From the data in Per Combustion Line, Table J6:O79, subject to No. of lines installed
A6: mg/Nm3 | B6: 1/2 hourly PM ELV | C6: Monthly mean of half-hourly averages | D6: Highest half- hourly average | E6: Daily PM ELV | F6: Monthly mean of daily averages | G6: Highest daily average | J6: =+A5 -> 2025 | K6: mg/Nm3 | L6: Monthly mean of half-hourly averages | M6: Highest half- hourly average | N6: Monthly mean of daily averages | O6: Highest daily average
A7: Jan | B7: 30 | C7: =AVERAGE(L7,L22,M37) -> 1.566666667 | D7: =MAX(M7,M22,M37) -> 3.3 | E7: 5 | F7: =AVERAGE(N7,N22,N37) -> 0.6333333333 | G7: =MAX(O7,O22,O37) -> 2.2 | J7: A1 | K7: Jan | L7: 0.7 | M7: 2.2 | N7: 0.7 | O7: 1
A8: Feb | B8: 30 | C8: =AVERAGE(L8,L23,M38) -> 1.566666667 | D8: =MAX(M8,M23,M38) -> 8.9 | E8: 5 | F8: =AVERAGE(N8,N23,N38) -> 0.6 | G8: =MAX(O8,O23,O38) -> 3.1 | K8: Feb | L8: 0.4 | M8: 1.4 | N8: 0.4 | O8: 0.6
A9: Mar | B9: 30 | C9: 1.5 | D9: =MAX(M9,M24,M39) -> 23.9 | E9: 5 | F9: 0.6 | G9: 5.2 | K9: Mar | L9: 0.3 | M9: 0.5 | N9: 0.3 | O9: 0.5
A10: Apr | B10: 30 | C10: 2.2 | D10: 11.4 | E10: 5 | F10: 0.4333333333 | G10: 2.7 | K10: Apr | L10: 0.3 | M10: 6.8 | N10: 0.3 | O10: 0.6 | Q10: Whole Installation table A5:G18:
A11: May | B11: 30 | C11: 2.133333333 | D11: 5.5 | E11: 5 | F11: 0.6 | G11: =MAX(O11,O26,O41) -> 2.9 | K11: May | L11: 0.3 | M11: 1.5 | N11: 0.3 | O11: 0.4 | Q11: Mean: for 1/2 hourly and daily periods calculate mean of values across all operational combustion lines for the month
A12: Jun | B12: 30 | C12: 2.966666667 | D12: 8.1 | E12: 5 | F12: 0.6666666667 | G12: 3.3 | K12: Jun | L12: 0.2 | M12: 0.5 | N12: 0.1 | O12: 0.3
A13: Jul | B13: 30 | C13: 0.8666666667 | D13: 3 | E13: 5 | F13: 0.3333333333 | G13: 1.5 | K13: Jul | L13: 0.2 | M13: 1 | N13: 0.1 | O13: 0.3
A14: Aug | B14: 30 | C14: 0.5 | D14: 2.4 | E14: 5 | F14: 0.3 | G14: 1.3 | K14: Aug | L14: 0.2 | M14: 0.6 | N14: 0.1 | O14: 0.2 | Q14: Maximum: for 1/2 hourly and daily periods use the highest value across all operational combustion lines for the month
A15: Sep | B15: 30 | C15: 0.7333333333 | D15: 3.7 | E15: 5 | F15: 0.5333333333 | G15: 1.9 | K15: Sep | L15: 0.2 | M15: 0.4 | N15: 0.2 | O15: 0.3
A16: Oct | B16: 30 | C16: 1.6 | D16: 6.9 | E16: 5 | F16: 0.6 | G16: 2.3 | K16: Oct | L16: 0.1 | M16: 0.3 | N16: 0.1 | O16: 0.2
A17: Nov | B17: 30 | C17: 0.7666666667 | D17: 7.1 | E17: 5 | F17: 0.6666666667 | G17: 2.4 | K17: Nov | L17: 0.1 | M17: 0.3 | N17: 0.1 | O17: 0.2
A18: Dec | B18: 30 | C18: 0.8333333333 | D18: 5.7 | E18: 5 | F18: 0.7333333333 | G18: 2.7 | K18: Dec | L18: 0.1 | M18: 0.3 | N18: 0.1 | O18: 0.2
K19: Annual | L19: =AVERAGE(L7:L18) -> 0.2583333333 | M19: =MAX(M7:M18) -> 6.8 | N19: =AVERAGE(N7:N18) -> 0.2333333333 | O19: =MAX(O7:O18) -> 1 | Q19: *Value of Daily ELV:
Q20: ELV should be corrected as necessary to match ELV in Table 6.2
J21: =+A5 -> 2025 | K21: mg/Nm3 | L21: Monthly mean of half-hourly averages | M21: Highest half- hourly average | N21: Monthly mean of daily averages | O21: Highest daily average
J22: A2 | K22: Jan | L22: 0.7 | M22: 3.3 | N22: 0.7 | O22: 2.2
K23: Feb | L23: 1.1 | M23: 8.9 | N23: 1 | O23: 3.1
K24: Mar | L24: 0.8 | M24: 23.9 | N24: 1 | O24: 5.2
K25: Apr | L25: 0.5 | M25: 11.4 | N25: 0.5 | O25: 1.4
K26: May | L26: 0.6 | M26: 2.8 | N26: 0.6 | O26: 0.9
K27: Jun | L27: 0.6 | M27: 1.6 | N27: 0.6 | O27: 1.2
K28: Jul | L28: 0.8 | M28: 3 | N28: 0.8 | O28: 1.5
K29: Aug | L29: 0.9 | M29: 2.4 | N29: 0.8 | O29: 1.3
K30: Sep | L30: 1.4 | M30: 3.7 | N30: 1.4 | O30: 1.9
K31: Oct | L31: 1.7 | M31: 6.9 | N31: 1.7 | O31: 2.3
K32: Nov | L32: 1.8 | M32: 7.1 | N32: 1.8 | O32: 2.4
K33: Dec | L33: 2.1 | M33: 5.7 | N33: 2 | O33: 2.7
K34: Annual | L34: =AVERAGE(L22:L33) -> 1.083333333 | M34: =MAX(M22:M33) -> 23.9 | N34: =AVERAGE(N22:N33) -> 1.075 | O34: =MAX(O22:O33) -> 5.2
J36: =+A5 -> 2025 | K36: mg/Nm3 | L36: Monthly mean of half-hourly averages | M36: Highest half- hourly average | N36: Monthly mean of daily averages | O36: Highest daily average
J37: A3 | K37: Jan | L37: 0.5 | M37: 3.3 | N37: 0.5 | O37: 0.8
K38: Feb | L38: 0.5 | M38: 3.2 | N38: 0.4 | O38: 0.8
K39: Mar | L39: 0.5 | M39: 3.4 | N39: 0.5 | O39: 1.1
K40: Apr | L40: 0.5 | M40: 5.8 | N40: 0.5 | O40: 2.7
K41: May | L41: 1 | M41: 5.5 | N41: 0.9 | O41: 2.9
K42: Jun | L42: 1.3 | M42: 8.1 | N42: 1.3 | O42: 3.3
K43: Jul | L43: 0.1 | M43: 1.6 | N43: 0.1 | O43: 0.4
K44: Aug | L44: 0.1 | M44: 0.4 | N44: 0 | O44: 0.1
K45: Sep | L45: 0.1 | M45: 0.6 | N45: 0 | O45: 0.2
K46: Oct | L46: 0.1 | M46: 3 | N46: 0 | O46: 0.2
K47: Nov | L47: 0.1 | M47: 0.4 | N47: 0.1 | O47: 0.1
A48: Comments : | K48: Dec | L48: 0.1 | M48: 0.3 | N48: 0.1 | O48: 0.2
A49: Line 2 had 1 daily average exceedance in 2025. There was insufficient effective operating time for the daily average ELV to be applicable. | K49: Annual | L49: =AVERAGE(L37:L48) -> 0.4083333333 | M49: =MAX(M37:M48) -> 8.1 | N49: =AVERAGE(N37:N48) -> 0.3666666667 | O49: =MAX(O37:O48) -> 3.3
J51: =+A5 -> 2025 | K51: mg/Nm3 | L51: Monthly mean of half-hourly averages | M51: Highest half- hourly average | N51: Monthly mean of daily averages | O51: Highest daily average
J52: A4 | K52: Jan
K53: Feb
K54: Mar
K55: Apr
K56: May
K57: Jun
K58: Jul
K59: Aug
K60: Sep
K61: Oct
K62: Nov
K63: Dec
K64: Annual | L64: =AVERAGE(L52:L63) ->  | M64: =MAX(M52:M63) -> 0 | N64: =AVERAGE(N52:N63) ->  | O64: =MAX(O52:O63) -> 0
J66: =+A5 -> 2025 | K66: mg/Nm3 | L66: Monthly mean of half-hourly averages | M66: Highest half- hourly average | N66: Monthly mean of daily averages | O66: Highest daily average
J67: A5 | K67: Jan
K68: Feb
K69: Mar
K70: Apr
K71: May
K72: Jun
K73: Jul
K74: Aug
K75: Sep
K76: Oct
K77: Nov
K78: Dec
K79: Annual | L79: =AVERAGE(L67:L78) ->  | M79: =MAX(M67:M78) -> 0 | N79: =AVERAGE(N67:N78) ->  | O79: =MAX(O67:O78) -> 0

Sheet CO 0.5 hourly
A1: =+'Cover Page'!$B$29 -> Annual Performance Report 2025 | E1: =+'Cover Page'!$B$33 -> MVV Environment Baldovie Ltd
A3: Monitoring of Carbon Monoxide (half hourly) | D3: Whole Installation | G3: See Notes in Cell Q3 | J3: =+A3 -> Monitoring of Carbon Monoxide (half hourly) | N3: Per Combustion Line | Q3: Notes:
A5: Please complete this tab for your plant if you have 1/2 hourly CO ELVs; otherwise, leave it blank and complete the CO 95% 10 min tab
Q7: User to add logic to complete Whole installation, Table A5:G18. From the data in Per Combustion Line, Table J6:O79, subject to No. of lines installed
A8: =+'Cover Page'!C39 -> 2025 | B8: 1/2 Hourly Reference Periods | E8: Daily Reference Periods
A9: mg/Nm3 | B9: 1/2 hourly CO ELV | C9: Monthly mean of half-hourly averages | D9: Highest half- hourly average | E9: Daily CO ELV | F9: Monthly mean of daily averages | G9: Highest daily average | J9: =+A8 -> 2025 | K9: mg/Nm3 | L9: Monthly mean of half-hourly averages | M9: Highest half- hourly average | N9: Monthly mean of daily averages | O9: Highest daily average
A10: Jan | B10: 100 | E10: 50 | J10: A1 | K10: Jan
A11: Feb | B11: =+B10 -> 100 | E11: =+E10 -> 50 | K11: Feb
A12: Mar | B12: =+B11 -> 100 | E12: =+E11 -> 50 | K12: Mar | Q12: Whole Installation table A5:G18:
A13: Apr | B13: 100 | E13: 50 | K13: Apr | Q13: Mean: for 1/2 hourly and daily periods calculate mean of values across all operational combustion lines for the month
A14: May | B14: 100 | E14: 50 | K14: May
A15: Jun | B15: 100 | E15: 50 | K15: Jun
A16: Jul | B16: 100 | E16: 50 | K16: Jul | Q16: Maximum: for 1/2 hourly and daily periods use the highest value across all operational combustion lines for the month
A17: Aug | B17: 100 | E17: 50 | K17: Aug
A18: Sep | B18: 100 | E18: 50 | K18: Sep
A19: Oct | B19: 100 | E19: 50 | K19: Oct
A20: Nov | B20: 100 | E20: 50 | K20: Nov
A21: Dec | B21: 100 | E21: 50 | K21: Dec | Q21: *Value of Daily ELV:
K22: Annual | L22: =AVERAGE(L10:L21) ->  | M22: =MAX(M10:M21) -> 0 | N22: =AVERAGE(N10:N21) ->  | O22: =MAX(O10:O21) -> 0 | Q22: ELV should be corrected as necessary to match ELV in Table 6.2
J24: =+A8 -> 2025 | K24: mg/Nm3 | L24: Monthly mean of half-hourly averages | M24: Highest half- hourly average | N24: Monthly mean of daily averages | O24: Highest daily average
J25: A2 | K25: Jan
K26: Feb
K27: Mar
K28: Apr
K29: May
K30: Jun
K31: Jul
K32: Aug
K33: Sep
K34: Oct
K35: Nov
K36: Dec
K37: Annual | L37: =AVERAGE(L25:L36) ->  | M37: =MAX(M25:M36) -> 0 | N37: =AVERAGE(N25:N36) ->  | O37: =MAX(O25:O36) -> 0
J39: =+A8 -> 2025 | K39: mg/Nm3 | L39: Monthly mean of half-hourly averages | M39: Highest half- hourly average | N39: Monthly mean of daily averages | O39: Highest daily average
J40: A3 | K40: Jan
K41: Feb
K42: Mar
K43: Apr
K44: May
K45: Jun
K46: Jul
K47: Aug
K48: Sep
K49: Oct
K50: Nov
A51: Comments : | K51: Dec
K52: Annual | L52: =AVERAGE(L40:L51) ->  | M52: =MAX(M40:M51) -> 0 | N52: =AVERAGE(N40:N51) ->  | O52: =MAX(O40:O51) -> 0
J54: =+A8 -> 2025 | K54: mg/Nm3 | L54: Monthly mean of half-hourly averages | M54: Highest half- hourly average | N54: Monthly mean of daily averages | O54: Highest daily average
J55: A4 | K55: Jan
K56: Feb
K57: Mar
K58: Apr
K59: May
K60: Jun
K61: Jul
K62: Aug
K63: Sep
K64: Oct
K65: Nov
K66: Dec
K67: Annual | L67: =AVERAGE(L55:L66) ->  | M67: =MAX(M55:M66) -> 0 | N67: =AVERAGE(N55:N66) ->  | O67: =MAX(O55:O66) -> 0
J69: =+A8 -> 2025 | K69: mg/Nm3 | L69: Monthly mean of half-hourly averages | M69: Highest half- hourly average | N69: Monthly mean of daily averages | O69: Highest daily average
J70: A5 | K70: Jan
K71: Feb
K72: Mar
K73: Apr
K74: May
K75: Jun
K76: Jul
K77: Aug
K78: Sep
K79: Oct
K80: Nov
K81: Dec
K82: Annual | L82: =AVERAGE(L70:L81) ->  | M82: =MAX(M70:M81) -> 0 | N82: =AVERAGE(N70:N81) ->  | O82: =MAX(O70:O81) -> 0

Sheet CO 95% 10 min
A1: =+'Cover Page'!$B$29 -> Annual Performance Report 2025 | E1: =+'Cover Page'!$B$33 -> MVV Environment Baldovie Ltd
A3: Monitoring of Carbon Monoxide (10-minute avg) | E3: Whole Installation | H3: See Notes in Cell S3 | J3: =+A3 -> Monitoring of Carbon Monoxide (10-minute avg) | O3: Per Combustion Line | Q3: Notes: | S3: Notes:
A5: Please complete this tab for your plant if you have 10-minute average CO ELVs; otherwise, leave it blank and complete the CO 0.5 hourly tab
S7: User to add logic to complete Whole installation, Table A5:H18. From the data in Per Combustion Line, Table K6:Q79, subject to No. of lines installed
A8: =+'Cover Page'!C39 -> 2025 | B8: 10-minute Reference Periods | F8: Daily Reference Periods
A9: mg/Nm3 | B9: 95%ile 10-min avg CO ELV | C9: Highest daily 95%ile 10-min average | D9: Monthly mean of 10-min averages | E9: Highest 10-min average | F9: Daily CO ELV | G9: Monthly mean of daily averages | H9: Highest daily average | K9: =+A8 -> 2025 | L9: mg/Nm3 | M9: Highest daily 95%ile 10-min average | N9: Monthly mean of 10-min averages | O9: Highest 10-min average | P9: Monthly mean of daily averages | Q9: Highest daily average
A10: Jan | B10: 150 | C10: =MAX(M10,M25,M40) -> 81.4 | D10: =AVERAGE(N10,N25,N40) -> 11.3 | E10: =MAX(O10,O25,O40) -> 4144.5 | F10: 50* | G10: =AVERAGE(P10,P25,P40) -> 11.4 | H10: =MAX(Q10,Q25,Q40) -> 41.7 | K10: A1 | L10: Jan | M10: 59.1 | N10: 9.8 | O10: 401.3 | P10: 10.4 | Q10: 21.4
A11: Feb | B11: =+B10 -> 150 | C11: =MAX(M11,M26,M41) -> 109.3 | D11: =AVERAGE(N11,N26,N41) -> 10.3 | E11: =MAX(O11,O26,O41) -> 959.6 | F11: =+F10 -> 50* | G11: =AVERAGE(P11,P26,P41) -> 10.3 | H11: =MAX(Q11,Q26,Q41) -> 31.8 | L11: Feb | M11: 109.3 | N11: 12.2 | O11: 462.2 | P11: 12.3 | Q11: 31.8
A12: Mar | B12: =+B11 -> 150 | C12: 107.6 | D12: 19.16666667 | E12: 662.5 | F12: =+F11 -> 50* | G12: 20.03333333 | H12: 45.3 | L12: Mar | M12: 94.8 | N12: 17.7 | O12: 202.4 | P12: 18.9 | Q12: 29.2 | S12: Whole Installation table A5:H18:
A13: Apr | B13: 150 | C13: 100.4 | D13: 15.2 | E13: 387.8 | F13: 50* | G13: 15.23333333 | H13: 45.6 | L13: Apr | M13: 77.5 | N13: 13 | O13: 262.7 | P13: 13.4 | Q13: 25.4 | S13: Mean: for 10-min and daily periods use average of all operational combustion lines.
A14: May | B14: 150 | C14: 109.3 | D14: 13.83333333 | E14: 568.6 | F14: 50* | G14: 14.06666667 | H14: 38.3 | L14: May | M14: 68.9 | N14: 13.8 | O14: 249.7 | P14: 14.5 | Q14: 31.1
A15: Jun | B15: 150 | C15: 104.5 | D15: 15.16666667 | E15: 3006.4 | F15: 50* | G15: 14.3 | H15: 41.1 | L15: Jun | M15: 84.9 | N15: 14.7 | O15: 199.6 | P15: 15.1 | Q15: 26.2
A16: Jul | B16: 150 | C16: 200.3 | D16: 14.36666667 | E16: 606.3 | F16: 50* | G16: 14.46666667 | H16: 42.3 | L16: Jul | M16: 89 | N16: 20.4 | O16: 190.5 | P16: 20.7 | Q16: 34.6 | S16: Maximum: for 10-min and daily periods use the highest of all operational combustion lines in any month.
A17: Aug | B17: 150 | C17: 115.8 | D17: 16.56666667 | E17: 776.5 | F17: 50* | G17: 16.63333333 | H17: 45.3 | L17: Aug | M17: 90.5 | N17: 20.5 | O17: 233.4 | P17: 20.9 | Q17: 32.9
A18: Sep | B18: 150 | C18: 122.2 | D18: 22.86666667 | E18: 1003.4 | F18: 50* | G18: 23 | H18: 55 | L18: Sep | M18: 98.2 | N18: 29.3 | O18: 186.7 | P18: 28 | Q18: 44.3
A19: Oct | B19: 150 | C19: 87 | D19: 15.46666667 | E19: 1297.7 | F19: 50* | G19: 16.3 | H19: 41.7 | L19: Oct | M19: 72.9 | N19: 16.7 | O19: 338.6 | P19: 17.9 | Q19: 32.9
A20: Nov | B20: 150 | C20: 141.1 | D20: 17.63333333 | E20: 448.6 | F20: 50* | G20: 17.93333333 | H20: 48.5 | L20: Nov | M20: 68 | N20: 14.2 | O20: 194.5 | P20: 15.4 | Q20: 48.5
A21: Dec | B21: 150 | C21: 117.2 | D21: 15.96666667 | E21: 1156.7 | F21: 50* | G21: 15.76666667 | H21: 43.9 | L21: Dec | M21: 95.1 | N21: 12 | O21: 222 | P21: 12.1 | Q21: 25.2 | S21: *Value of Daily ELV:
L22: Annual | M22: =AVERAGE(M10:M21) -> 84.01666667 | O22: =MAX(O10:O21) -> 462.2 | P22: =AVERAGE(P10:P21) -> 16.63333333 | Q22: =MAX(Q10:Q21) -> 48.5 | S22: ELV should be corrected as necessary to match ELV in Table 6.2
K24: =+A8 -> 2025 | L24: mg/Nm3 | M24: Highest daily 95%ile 10-min average | N24: Monthly mean of 10-min averages | O24: Highest 10-min average | P24: Monthly mean of daily averages | Q24: Highest daily average
K25: A2 | L25: Jan | M25: 81.4 | N25: 11.9 | O25: 213.7 | P25: 11.6 | Q25: 24.5
L26: Feb | M26: 27.9 | N26: 7.5 | O26: 181.1 | P26: 7.4 | Q26: 11.1
L27: Mar | M27: 107.6 | N27: 24.7 | O27: 281.1 | P27: 26 | Q27: 45.3
L28: Apr | M28: 100.4 | N28: 19.6 | O28: 318.2 | P28: 19.2 | Q28: 45.6
L29: May | M29: 70.3 | N29: 14.8 | O29: 242 | P29: 14.8 | Q29: 23.5
L30: Jun | M30: 104.5 | N30: 13.9 | O30: 1172.3 | P30: 14 | Q30: 41.1
L31: Jul | M31: 95.9 | N31: 14.7 | O31: 263.5 | P31: 15.7 | Q31: 42.3
L32: Aug | M32: 115.8 | N32: 22.6 | O32: 510.7 | P32: 22.3 | Q32: 45.3
L33: Sep | M33: 122.2 | N33: 30.4 | O33: 331.4 | P33: 32.1 | Q33: 55
L34: Oct | M34: 87 | N34: 22.4 | O34: 324.1 | P34: 23.7 | Q34: 41.7
L35: Nov | M35: 141.1 | N35: 32.5 | O35: 448.6 | P35: 32.3 | Q35: 47.6
L36: Dec | M36: 117.2 | N36: 29.3 | O36: 946.5 | P36: 28.6 | Q36: 43.9
L37: Annual | M37: =AVERAGE(M25:M36) -> 97.60833333 | O37: =MAX(O25:O36) -> 1172.3 | P37: =AVERAGE(P25:P36) -> 20.64166667 | Q37: =MAX(Q25:Q36) -> 55
K39: =+A8 -> 2025 | L39: mg/Nm3 | M39: Highest daily 95%ile 10-min average | N39: Monthly mean of 10-min averages | O39: Highest 10-min average | P39: Monthly mean of daily averages | Q39: Highest daily average
K40: A3 | L40: Jan | M40: 32.1 | N40: 12.2 | O40: 4144.5 | P40: 12.2 | Q40: 41.7
L41: Feb | M41: 53.2 | N41: 11.2 | O41: 959.6 | P41: 11.2 | Q41: 19.6
L42: Mar | M42: 83.7 | N42: 15.1 | O42: 662.5 | P42: 15.2 | Q42: 28.2
L43: Apr | M43: 78.5 | N43: 13 | O43: 387.8 | P43: 13.1 | Q43: 26.9
L44: May | M44: 109.3 | N44: 12.9 | O44: 568.6 | P44: 12.9 | Q44: 38.3
L45: Jun | M45: 57.9 | N45: 16.9 | O45: 3006.4 | P45: 13.8 | Q45: 21.4
L46: Jul | M46: 200.3 | N46: 8 | O46: 606.3 | P46: 7 | Q46: 39.4
L47: Aug | M47: 38 | N47: 6.6 | O47: 776.5 | P47: 6.7 | Q47: 12.6
L48: Sep | M48: 53.7 | N48: 8.9 | O48: 1003.4 | P48: 8.9 | Q48: 25.2
L49: Oct | M49: 39.6 | N49: 7.3 | O49: 1297.7 | P49: 7.3 | Q49: 18.7
L50: Nov | M50: 17.4 | N50: 6.2 | O50: 167.8 | P50: 6.1 | Q50: 8.8
A51: Comments : | L51: Dec | M51: 13 | N51: 6.6 | O51: 1156.7 | P51: 6.6 | Q51: 13.1
A52: Environment Agency explanatory note: The 10-minute average ELV is based on the “95th percentile”. In this case this means that 95% of the 10 minute averages in the relevant 24-hour period (i.e. 137) must be below 150 mg/Nm3, and 5% (i.e. 7) are allowed to be any value above 150 mg/Nm3. Whilst we expect operators to minimise CO emissions at all times, it is perfectly acceptable for the value of the maximum 10-minute average to be above 150 mg/Nm3, provided the 95th percentile ELV has been met for that period. *Line 3 Daily Average ELV is 30mg/m3 Line 1 had 1 daily average exceedance in 2025. There was insufficient effective operating time for the daily average ELV to be applicable. Line 3 had 8 daily average exceedances in 2025. For 3 of the 8 incidents, there was insufficient effective operating time for the daily average ELV to be applicable. | L52: Annual | M52: =AVERAGE(M40:M51) -> 64.725 | O52: =MAX(O40:O51) -> 4144.5 | P52: =AVERAGE(P40:P51) -> 10.08333333 | Q52: =MAX(Q40:Q51) -> 41.7
K54: =+A8 -> 2025 | L54: mg/Nm3 | M54: Highest daily 95%ile 10-min average | N54: Monthly mean of 10-min averages | O54: Highest 10-min average | P54: Monthly mean of daily averages | Q54: Highest daily average
K55: A4 | L55: Jan
L56: Feb
L57: Mar
L58: Apr
L59: May
L60: Jun
L61: Jul
L62: Aug
L63: Sep
L64: Oct
L65: Nov
L66: Dec
L67: Annual | M67: =AVERAGE(M55:M66) ->  | O67: =MAX(O55:O66) -> 0 | P67: =AVERAGE(P55:P66) ->  | Q67: =MAX(Q55:Q66) -> 0
K69: =+A8 -> 2025 | L69: mg/Nm3 | M69: 95%ile 10-min avg maximum | N69: Monthly CO 10-min avg mean | O69: 10-min avg maximum | P69: Monthly daily mean | Q69: Monthly daily maximum
K70: A5 | L70: Jan
L71: Feb
L72: Mar
L73: Apr
L74: May
L75: Jun
L76: Jul
L77: Aug
L78: Sep
L79: Oct
L80: Nov
L81: Dec
L82: Annual | M82: =AVERAGE(M70:M81) ->  | O82: =MAX(O70:O81) -> 0 | P82: =AVERAGE(P70:P81) ->  | Q82: =MAX(Q70:Q81) -> 0

Sheet NH3
A1: =+'Cover Page'!$B$29 -> Annual Performance Report 2025 | E1: =+'Cover Page'!$B$33 -> MVV Environment Baldovie Ltd
A3: Monitoring of Ammnonia emissions | D3: Whole Installation | G3: See Notes in Cell Q3 | J3: =+A3 -> Monitoring of Ammnonia emissions | N3: Per Combustion Line | Q3: Notes:
Q4: User to add logic to complete Whole installation, Table A5:G18. From the data in Per Combustion Line, Table J6:O79, subject to No. of lines installed
A5: =+'Cover Page'!C39 -> 2025 | B5: 1/2 Hourly Reference Periods | E5: Daily Reference Periods
A6: mg/Nm3 | B6: 1/2 hourly NH3 ELV | C6: Monthly mean of half-hourly averages | D6: Highest half- hourly average | E6: Daily NH3 ELV | F6: Monthly mean of daily averages | G6: Highest daily average | J6: =+A5 -> 2025 | K6: mg/Nm3 | L6: Monthly mean of half-hourly averages | M6: Highest half- hourly average | N6: Monthly mean of daily averages | O6: Highest daily average
A7: Jan | B7: None | C7: =AVERAGE(L7,L22,M37) -> 0.9 | D7: =MAX(M7,M22,M37) -> 24.6 | E7: 10 | F7: =AVERAGE(N7,N22,N37) -> 0.4666666667 | G7: =MAX(O7,O22,O37) -> 7.9 | J7: A1 | K7: Jan | L7: 0.3 | M7: 24.6 | N7: 0.7 | O7: 7.9
A8: Feb | B8: =+B7 -> None | C8: =AVERAGE(L8,L23,M38) -> 0.6333333333 | D8: =MAX(M8,M23,M38) -> 6.4 | E8: 10 | F8: =AVERAGE(N8,N23,N38) -> 0.2666666667 | G8: =MAX(O8,O23,O38) -> 1.7 | K8: Feb | L8: 0.8 | M8: 6.4 | N8: 0.8 | O8: 1.7
A9: Mar | B9: =+B8 -> None | C9: 1.333333333 | D9: =MAX(M9,M24,M39) -> 19.2 | E9: 10 | F9: 0.3333333333 | G9: 2.4 | K9: Mar | L9: 0.4 | M9: 19.2 | N9: 0.5 | O9: 1.9 | Q9: Whole Installation table A5:G18:
A10: Apr | B10: None | C10: 0.8 | D10: 9.9 | E10: 10 | F10: 0.3666666667 | G10: 3.1 | K10: Apr | L10: 0.6 | M10: 9.9 | N10: 0.8 | O10: 3.1 | Q10: Mean: for 1/2 hourly and daily periods calculate mean of values across all operational combustion lines for the month
A11: May | B11: None | C11: 0.6666666667 | D11: 14.1 | E11: 10 | F11: 0.5666666667 | G11: =MAX(O11,O26,O41) -> 4.3 | K11: May | L11: 1.2 | M11: 14.1 | N11: 1.1 | O11: 2.8
A12: Jun | B12: None | C12: 0.6333333333 | D12: 14.8 | E12: 10 | F12: 0.4333333333 | G12: 4.7 | K12: Jun | L12: 0.4 | M12: 7.5 | N12: 0.5 | O12: 2.8
A13: Jul | B13: None | C13: 1.366666667 | D13: 6.8 | E13: 10 | F13: 0.2333333333 | G13: 2 | K13: Jul | L13: 0.2 | M13: 6.8 | N13: 0.3 | O13: 2 | Q13: Maximum: for 1/2 hourly and daily periods use the highest value across all operational combustion lines for the month
A14: Aug | B14: None | C14: 0.6333333333 | D14: 4.4 | E14: 10 | F14: 0.1 | G14: 0.6 | K14: Aug | L14: 0.2 | M14: 4.4 | N14: 0.2 | O14: 0.6
A15: Sep | B15: None | C15: 0.6333333333 | D15: 4.1 | E15: 10 | F15: 0.2333333333 | G15: 1.5 | K15: Sep | L15: 0.5 | M15: 4.1 | N15: 0.5 | O15: 1.5
A16: Oct | B16: None | C16: 1.266666667 | D16: 13.6 | E16: 10 | F16: 0.4 | G16: 2.7 | K16: Oct | L16: 0.2 | M16: 6.7 | N16: 0.2 | O16: 1.3
A17: Nov | B17: None | C17: 5.066666667 | D17: 16.7 | E17: 10 | F17: 1.233333333 | G17: 7.2 | K17: Nov | L17: 0.2 | M17: 7 | N17: 0.3 | O17: 2.2
A18: Dec | B18: None | C18: 1.1 | D18: 21.5 | E18: 10 | F18: 0.5333333333 | G18: 5 | K18: Dec | L18: 0.4 | M18: 21.5 | N18: 0.4 | O18: 3.4 | Q18: *Value of Daily ELV:
K19: Annual | L19: =AVERAGE(L7:L18) -> 0.45 | M19: =MAX(M7:M18) -> 24.6 | N19: =AVERAGE(N7:N18) -> 0.525 | O19: =MAX(O7:O18) -> 7.9 | Q19: ELV should be corrected as necessary to match ELV in Table 6.2
J21: =+A5 -> 2025 | K21: mg/Nm3 | L21: Monthly mean of half-hourly averages | M21: Highest half- hourly average | N21: Monthly mean of daily averages | O21: Highest daily average
J22: A2 | K22: Jan | L22: 0.7 | M22: 9 | N22: 0.7 | O22: 1.8
K23: Feb | L23: 0.1 | M23: 2.3 | N23: 0 | O23: 0.5
K24: Mar | L24: 0.4 | M24: 13.5 | N24: 0.4 | O24: 2.4
K25: Apr | L25: 0.3 | M25: 9.9 | N25: 0.3 | O25: 1.8
K26: May | L26: 0.4 | M26: 8.2 | N26: 0.6 | O26: 4.3
K27: Jun | L27: 0.8 | M27: 14.8 | N27: 0.9 | O27: 4.7
K28: Jul | L28: 0.2 | M28: 3 | N28: 0.2 | O28: 1
K29: Aug | L29: 0.1 | M29: 3.1 | N29: 0.1 | O29: 0.4
K30: Sep | L30: 0.2 | M30: 4 | N30: 0.2 | O30: 0.8
K31: Oct | L31: 1.2 | M31: 13.6 | N31: 1 | O31: 2.7
K32: Nov | L32: 3.4 | M32: 16.7 | N32: 3.3 | O32: 7.2
K33: Dec | L33: 0.8 | M33: 9.4 | N33: 1.1 | O33: 5
K34: Annual | L34: =AVERAGE(L22:L33) -> 0.7166666667 | M34: =MAX(M22:M33) -> 16.7 | N34: =AVERAGE(N22:N33) -> 0.7333333333 | O34: =MAX(O22:O33) -> 7.2
J36: =+A5 -> 2025 | K36: mg/Nm3 | L36: Monthly mean of half-hourly averages | M36: Highest half- hourly average | N36: Monthly mean of daily averages | O36: Highest daily average
J37: A3 | K37: Jan | L37: 0.1 | M37: 1.7 | N37: 0 | O37: 0.6
K38: Feb | L38: 0 | M38: 1 | N38: 0 | O38: 0.1
K39: Mar | L39: 0.1 | M39: 3.2 | N39: 0.1 | O39: 0.8
K40: Apr | L40: 0 | M40: 1.5 | N40: 0 | O40: 0.3
K41: May | L41: 0 | M41: 0.4 | N41: 0 | O41: 0.1
K42: Jun | L42: 0 | M42: 0.7 | N42: -0.1 | O42: 0.2
K43: Jul | L43: 0.2 | M43: 3.7 | N43: 0.2 | O43: 2
K44: Aug | L44: 0 | M44: 1.6 | N44: 0 | O44: 0.1
K45: Sep | L45: 0 | M45: 1.2 | N45: 0 | O45: 0.1
K46: Oct | L46: 0 | M46: 2.4 | N46: 0 | O46: 0.2
K47: Nov | L47: 0.2 | M47: 11.6 | N47: 0.1 | O47: 1.2
A48: Comments : | K48: Dec | L48: 0.1 | M48: 2.1 | N48: 0.1 | O48: 0.6
A49: An indicated ELV value of zero in the table above means that no ammonia limit is/was set in the permit. | K49: Annual | L49: =AVERAGE(L37:L48) -> 0.05833333333 | M49: =MAX(M37:M48) -> 11.6 | N49: =AVERAGE(N37:N48) -> 0.03333333333 | O49: =MAX(O37:O48) -> 2
J51: =+A5 -> 2025 | K51: mg/Nm3 | L51: Monthly mean of half-hourly averages | M51: Highest half- hourly average | N51: Monthly mean of daily averages | O51: Highest daily average
J52: A4 | K52: Jan
K53: Feb
K54: Mar
K55: Apr
K56: May
K57: Jun
K58: Jul
K59: Aug
K60: Sep
K61: Oct
K62: Nov
K63: Dec
K64: Annual | L64: =AVERAGE(L52:L63) ->  | M64: =MAX(M52:M63) -> 0 | N64: =AVERAGE(N52:N63) ->  | O64: =MAX(O52:O63) -> 0
J66: =+A5 -> 2025 | K66: mg/Nm3 | L66: Monthly mean of half-hourly averages | M66: Highest half- hourly average | N66: Monthly mean of daily averages | O66: Highest daily average
J67: A5 | K67: Jan
K68: Feb
K69: Mar
K70: Apr
K71: May
K72: Jun
K73: Jul
K74: Aug
K75: Sep
K76: Oct
K77: Nov
K78: Dec
K79: Annual | L79: =AVERAGE(L67:L78) ->  | M79: =MAX(M67:M78) -> 0 | N79: =AVERAGE(N67:N78) ->  | O79: =MAX(O67:O78) -> 0

Sheet Template changes log
A1: Log of changes to template (Environment Agency use only)
A3: Date | B3: Description of change | C3: New version number and date
A4: 2024-01-16 | B4: Air (periodic) tab: corrected default O2 reference from 6 to 11% | C4: Version 23.5a (for incinerators) - 16/01/2024
A5: 2024-09-23 | B5: Air (periodic) tab: corrected symbol for Thallium to Tl
A6: 2024-09-23 | B6: Air (periodic) tab: removed last year's references to different emission limit values applying from 03/12/23 and updated all relevant ELVs
A7: 2024-09-23 | B7: Tabs for continuously monitored pollutants (HCl, SO2 etc.): changed terminology in table headings to improve clarity
A8: 2024-09-23 | B8: Tabs for continuously monitored pollutants (HCl, SO2 etc.): removed last year's references to different emission limit values applying from 03/12/23 and updated all relevant ELVs
A9: 2024-09-23 | B9: Perf 1 tab: updated formula for water usage to report m3 rather than litres and corrected error with formula copying operator name
A10: 2024-09-23 | B10: Operational Summary tab: table added on start-ups and shut-downs
A11: 2024-09-23 | B11: Operational Summary tab: table added on dioxins and mercury protocols
A12: 2024-09-23 | B12: Operational Summary tab: table added on AST, QAL 2 and calibration functions
A13: 2024-09-23 | B13: CO2 N2O tab: various changes made to notes to reflect the fact that most plants should now have calibrated CEMS and flow meters + some have C14 samplers and more up to date industry data | C13: Version 24a (for incinerators) - 23/09/24
A14: 2024-11-08 | B14: CO2 N2O tab: Changed the N2O CO2 equivalence factor from 298 to 265 in line with recently updated government greenhouse gas figures: https://www.gov.uk/government/publications/greenhouse-gas-reporting-conversion-factors-2024
A15: 2024-11-08 | B15: CO2 N2O tab: Added an additional requirement for municipal EfW plants to state the yearly average biogenic percentage of the waste by mass, and reference to a document which sets out a methodology for calculating NCV of waste from the results of C14 sampling.
A16: 2024-11-08 | B16: Permit Compliance tab: Two additional columns added + explanatory notes to the table entitled "Summary of non-compliances under the permit" to allow CCS scores to be stated where relevant.
A17: 2024-11-08 | B17: Residue Quality tab: Note added explaining application of TOC and LOI limits and asking operators to report both metrics where measured. | C17: Version 24.1a (for incinerators) - 08/11/24
A18: 2024-11-27 | B18: Operational Summary tab: table added on start-ups and shut-downs | C18: Version 24.2a (for incinerators) - 27/11/24
A19: 2025-11-27 | B19: Cover Page: Print as PDF and Print Report and pdf buttons deleted and blank columns removed; contents page deleted | C19: Version 25.1a (for incinerators) - 27/11/25
A20: 2025-11-27 | B20: Residue Quality tab renamed to "Residues", and Summary of residue handling table moved from Operational Summary tab to Residues tab.
A21: 2025-11-27 | B21: Various changes made to the Operational Data tab including • Reformatting of the rows under the Operational data heading (Rows 3-8) to make it clearer what information is required. • Amendment of the rows under the Energy Usage / Export heading (Rows 26-32) to calculate an “indicative parasitic load” (now excluding energy imported) • Amendment of the unit for gas usage from cubic feet to cubic metres (Row 50) • Some amendments to the first 2 notes and other minor edits • Deleted "Overall Availability, mean avg. of all lines, hrs" row
A22: 2025-11-27 | B22: Operational Summary tab: Note added requiring all emergency shut-downs be listed, irrespective of whether or not they were reportable.
A23: 2025-11-27 | B23: CO2 N2O tab: Note added to ask operators to ensure that relevant data reported here matches that which will be submitted under the Pollution Inventory
